Cogmind - Beta 12 @@@ ROGUE MODE // 2023.03.15 @ 13:48:13 Player: Pogmind Result: Destroyed by Executioner with Helical Railgun Performance ------------- Evolutions (9) 4500 Regions Visited (32) 6400 Robots Destroyed (676) 3380 Value Destroyed (46661) 46661 Prototype IDs (74) 1480 Alien Tech Used (0) 0 Bonus (21814) 21814 TOTAL SCORE: 84235 Bonus ------- Triggered High Security 500 High Alert Combat Kills 9115 Follower Combat Kills 8476 Entered Garrisons 2600 Used RIF Installer 7000 Aligned with FarCom 300 Scanned by Researcher 500 Friendly Fire -6677 Cogmind --------- Core Integrity 0/1600 Matter 300/300 Energy 72/100 System Corruption 24% Temperature Cool (0) Movement Core (50) Location -1/Access Parts ------- > --- POWER (2) -------- (None) > --- PROPULSION (8) --- (None) > --- UTILITY (11) ----- (None) > --- WEAPON (4) ------- (None) > --- INVENTORY (5) ---- Advanced Cooling System Matter Compressor (250) Experimental EM Disruption Field Guided Micro-nuke Launcher Peak State ------------ > --- POWER ------------ Quantum Reactor Quantum Reactor > --- PROPULSION ------- Biometal Leg Biometal Leg Biometal Leg Biometal Leg Biometal Leg Biometal Leg Centrium Leg High-density Centrium Leg > --- UTILITY ---------- Advanced Cooling System Huge Storage Unit Experimental Optical Array Experimental Core Analyzer Improved Weapon Cycler Experimental Force Field Relay Coupler [C] Relay Coupler [C] Relay Coupler [C] Relay Coupler [Sentry] Relay Coupler [Specialist] > --- WEAPON ----------- Compact HERF Cannon Compact HERF Cannon Enhanced Nova Cannon Advanced Remote Datajack > --- INVENTORY -------- Vortex Chain Reactor Combat Antigrav System Combat Antigrav System Combat Antigrav System Combat Antigrav System Combat Antigrav System Combat Antigrav System Combat Linear Gravjet Combat Linear Gravjet Advanced Cooling System Energy Well Superbattery Matter Compressor Advanced Reaction Control System Advanced Phase Shifter Advanced Cloaking Device Experimental EM Disruption Field Advanced Force Field Antimissile System Long-range Tractor Beam Enhanced Nova Cannon Guided Micro-nuke Launcher Enhanced Force Lance [Rating: 212] Favorites ----------- Power Particle Reactor Engine Heavy Ion Engine Power Core Neutrino Core Reactor Particle Reactor Propulsion Light Treads Treads Light Treads Leg Biometal Leg Wheel Compact Wheel Hover Unit Combat Antigrav System Flight Unit Field Propulsion Array Utility Huge Storage Unit Device Advanced Force Field Storage Huge Storage Unit Processor Experimental Core Analyzer Hackware Relay Coupler [Swarmer] Protection Hardened Medium Armor Plating Weapon Enhanced Force Lance Energy Gun Advanced Beam Rifle Energy Cannon Beam Cannon Ballistic Gun Light Assault Rifle Ballistic Cannon Linear Accelerator Launcher Mini Grenade Launcher Special Weapon Advanced Remote Datajack Slashing Weapon Katana Piercing Weapon Enhanced Force Lance Build | -11 -10 -10 -10 -9 -8 -8 -8 -7 -7 -7 -7 -6 -6 -6 -6 -5 -5 -5 -5 -4 -4 -4 -4 -3 -3 -3 -3 -2 -2 -1 -1 -1 ------- Run | Jun Mat Min Exi Min Mat Sto Gar Fac Gar Fac Gar Fac Gar Fac Gar Fac Gar Fac Gar Fac Gar Fac Gar Res Gar Res Gar Res Gar Acc Gar Acc Slots Evolved 18 | . . . . . 4 . . 2 . . . 2 . . . 2 . . . 2 . . . 2 . . . 2 . 2 . . Power 1 | . . . . . . . . . . . . . . . . . . . . 1 . . . . . . . . . . . . Propulsion 6 | . . . . . 2 . . . . . . 2 . . . . . . . . . . . 2 . . . . . . . . Utility 9 | . . . . . 2 . . 2 . . . . . . . 1 . . . 1 . . . . . . . 2 . 1 . . Weapon 2 | . . . . . . . . . . . . . . . . 1 . . . . . . . . . . . . . 1 . . Parts Attached 1282 | 7 13 6 . 7 84 49 14 16 35 15 38 7 27 9 60 43 53 8 15 54 65 22 67 30 60 87 63 46 66 59 94 63 Power 62 | 1 . 1 . . 3 5 1 . 5 1 3 . . . 4 . . . . 2 4 1 5 1 2 5 4 . 4 3 2 5 Engine 14 | 1 . 1 . . 2 5 . . 2 1 1 . . . 1 . . . . . . . . . . . . . . . . . Core 9 | . . . . . 1 . 1 . 3 . . . . . . . . . . . . . 1 . . . . . 1 . . 2 Reactor 39 | . . . . . . . . . . . 2 . . . 3 . . . . 2 4 1 4 1 2 5 4 . 3 3 2 3 Propulsion 165 | 2 3 . . . 17 17 4 . 7 1 6 2 1 . 5 3 12 . . 5 9 . 4 9 6 6 4 . 1 4 20 17 Treads 118 | 2 3 . . . 12 15 4 . 7 1 6 2 1 . 5 3 12 . . 4 8 . 4 6 5 5 4 . 1 4 4 . Leg 18 | . . . . . . . . . . . . . . . . . . . . . 1 . . . . . . . . . 13 4 Wheel 7 | . . . . . 5 . . . . . . . . . . . . . . 1 . . . . 1 . . . . . . . Hover 17 | . . . . . . 1 . . . . . . . . . . . . . . . . . 2 . 1 . . . . 1 12 Flight 5 | . . . . . . 1 . . . . . . . . . . . . . . . . . 1 . . . . . . 2 1 Utility 564 | 2 4 . . . 18 2 4 5 14 6 20 5 12 6 30 19 23 4 7 24 23 11 33 3 24 40 33 30 42 43 51 26 Device 319 | 1 2 . . . 3 . 1 1 2 1 3 3 3 1 11 7 11 2 3 14 9 5 14 1 13 30 22 23 30 38 42 23 Storage 19 | 1 2 . . . 2 . . 1 1 . 2 . . . . . . . . . 1 2 1 . 1 1 1 . 1 . 1 1 Processor 17 | . . . . . 1 . . . . . . . 1 . . 1 . . . . . . 1 . 1 3 2 2 2 1 1 1 Hackware 119 | . . . . . 2 . 1 1 7 2 7 . 3 4 9 5 9 2 3 3 9 1 9 2 9 5 6 5 6 3 5 1 Protection 90 | . . . . . 10 2 2 2 4 3 8 2 5 1 10 6 3 . 1 7 4 3 8 . . 1 2 . 3 1 2 . Artifact . | . . . . . . . . . . . . . . . . . . . . . . . . . . . . . . . . . Weapon 491 | 2 6 5 . 7 46 25 5 11 9 7 9 . 14 3 21 21 18 4 8 23 29 10 25 17 28 36 22 16 19 9 21 15 Energy Gun 11 | . . . . . 3 3 . . . . . . . . . . . . . . . . 1 . 1 . 2 . . . 1 . Energy Cannon 57 | . 2 3 . 4 24 10 . . . . . . . . 1 . . . . . . . . . . . . . . . 7 6 Ballistic Gun 6 | 2 2 . . . . 1 . . . . . . . . . . . . . . . . . . . . . . . . 1 . Ballistic Cannon 170 | . . . . . 4 3 2 4 4 3 3 . 7 2 7 4 3 1 1 5 19 7 15 7 14 19 9 7 10 3 7 . Launcher 37 | . 2 2 . 1 9 2 1 1 . . . . . . 1 1 2 . . . 1 . 2 . 3 . . . . 2 2 5 Special Weapon 142 | . . . . . . . 1 4 4 3 3 . 3 1 8 8 7 2 3 11 9 3 7 10 10 14 7 8 8 4 . 4 Impact Weapon . | . . . . . . . . . . . . . . . . . . . . . . . . . . . . . . . . . Slashing Weapon 23 | . . . . 2 6 6 1 2 1 1 2 . . . . . . . . . . . . . . 2 . . . . . . Piercing Weapon 45 | . . . . . . . . . . . 1 . 4 . 4 8 6 1 4 7 . . . . . 1 4 1 1 . 3 . Special Melee Weapon . | . . . . . . . . . . . . . . . . . . . . . . . . . . . . . . . . . Unidentified Prototypes 26 | . . . . . 4 8 . 1 . . . . . . . 1 1 . . . . . . 1 . 3 . . . . 6 1 Parts Lost 77 | . 2 1 . . 16 6 1 . 5 . 1 . . . 2 2 2 . 1 . 4 . 2 1 1 1 1 . 2 2 5 19 Power 11 | . . 1 . . 1 1 . . 2 . . . . . . . . . . . . . . . 1 . . . 1 . . 4 Propulsion 24 | . 1 . . . 5 4 1 . 2 . 1 . . . 1 1 . . . . 1 . . . . . . . . . 1 6 Utility 31 | . . . . . 6 . . . 1 . . . . . 1 1 2 . 1 . 3 . 2 1 . . 1 . 1 1 3 7 Weapon 11 | . 1 . . . 4 1 . . . . . . . . . . . . . . . . . . . 1 . . . 1 1 2 Highest Loss Streak 17 | . 1 1 . . 11 3 1 . 3 . 1 . . . 1 1 1 . 1 . 2 . 1 1 1 1 1 . 1 1 1 17 To Critical Strikes 2 | . . . . . . 1 . . . . . . . . . . . . . . . . . . . . . . . . . 1 Average Slot Usage (%) 88 | . 99 100 100 100 97 98 99 96 93 91 98 99 99 99 98 96 91 75 70 76 80 83 82 79 79 79 75 81 81 81 77 94 Engine 2 | . 14 14 14 14 6 8 7 . 3 7 5 . . . . . . . . . . . . . . . . . . . . . Reactor 5 | . . . . . . . . . . . 1 6 6 6 6 5 5 5 5 9 10 10 10 9 8 9 8 8 5 6 4 7 Treads 24 | . 27 28 28 28 31 35 36 30 29 30 29 40 39 40 39 35 33 17 17 14 15 15 15 18 18 18 19 17 17 16 16 . Device 10 | . 14 14 14 14 8 9 8 7 4 7 2 10 6 6 8 10 14 7 7 9 11 20 17 17 15 11 9 10 14 9 10 11 Storage 6 | . 14 14 14 14 10 9 9 7 7 7 7 6 6 6 6 5 5 5 5 5 5 5 5 4 4 4 4 4 4 4 4 4 Processor 1 | . . . . . . . . . . . . . . . . . . . . . . . . . . 2 . . 4 7 11 7 Hackware 12 | . . . . . . . . 5 10 8 20 20 17 15 15 12 5 20 16 15 17 9 12 15 17 18 14 26 17 22 14 18 Protection 6 | . . . . . 15 18 17 21 22 20 14 2 7 10 8 9 12 5 4 5 4 5 4 . . . 3 . 1 . 1 . Energy Cannon 3 | . 11 23 28 24 11 12 . . . . . . . . . . . . . . . . . . . . . . . . 2 12 Ballistic Cannon 5 | . . . . . . 4 16 8 5 6 . . 4 2 4 7 4 4 4 8 7 7 8 6 7 6 8 6 6 7 6 . Special Weapon 1 | . . . . . . . . 4 1 . 6 6 3 5 4 2 . 2 1 . 1 2 1 2 . 2 1 2 1 3 . 2 Piercing Weapon 2 | . . . . . . . . . . . 1 6 3 3 3 2 4 2 3 4 5 5 5 4 4 3 3 3 3 4 3 . Naked Turns 4 | . . . . . . . . . . . . . . . . . . . . . . . . . . . . . . . . 4 Heaviest Build 191 | 11 51 53 53 55 78 78 79 89 125 127 127 110 136 125 141 152 164 146 161 186 185 190 191 167 167 175 189 163 164 169 184 181 Greatest Support 310 | 40 40 40 40 40 80 92 92 90 90 88 96 143 143 143 147 154 225 225 225 225 230 230 230 310 310 295 290 290 290 290 290 230 Greatest Overweight (x) 4 | . 1 1 1 1 4 1 . . 1 1 1 . 1 . 1 . 1 . . . 1 . . . . . . . . . 1 1 Average Overweight (x) . | . . 1 1 1 . . . . . 1 . . . . . . . . . . . . . . . . . . . . . . Largest Inventory Capacity 25 | 8 20 20 20 20 20 20 20 20 25 25 25 25 25 25 25 25 25 25 25 25 25 25 25 25 25 25 25 25 25 25 25 25 Average Capacity 23 | 7 17 20 20 20 20 20 20 20 20 25 22 25 25 25 25 25 25 25 25 25 25 25 25 25 25 25 25 25 25 25 25 23 Most Carried 25 | 4 20 20 20 20 20 20 20 20 25 25 25 25 25 25 25 25 25 25 25 25 25 25 25 25 25 25 25 25 25 25 25 25 Average Carried 22 | 3 14 19 20 19 19 19 19 19 20 24 21 24 24 24 24 24 24 24 24 24 24 24 24 24 24 24 24 24 23 24 20 22 Final Capacity 25 | 8 20 20 20 20 20 20 20 20 25 25 25 25 25 25 25 25 25 25 25 25 25 25 25 25 25 25 25 25 25 25 25 20 Final Carried 25 | 4 19 20 20 20 20 20 20 20 25 24 25 25 25 24 25 24 25 25 25 25 25 25 25 25 25 25 25 25 25 25 25 17 Class Distribution -------------------- 52% | Botlord-Mutant 20% | Mutant 16% | Bothacker-Mutant 6% | Scavenger-Mutant Dominant Class ---------------- Mutant | -10/Materials Mutant | -10/Mines Mutant | -10/Exiles Mutant | -9/Mines Mutant | -8/Materials Mutant | -8/Storage Mutant | -8/Garrison Mutant | -7/Factory Bothacker-Mutant | -7/Garrison Bothacker-Mutant | -7/Factory Bothacker-Mutant | -7/Garrison Bothacker-Mutant | -6/Factory Botlord-Mutant | -6/Garrison Botlord-Mutant | -6/Factory Botlord-Mutant | -6/Garrison Bothacker-Mutant | -5/Factory Bothacker-Mutant | -5/Garrison Botlord-Mutant | -5/Factory Botlord-Mutant | -5/Garrison Botlord-Mutant | -4/Factory Botlord-Mutant | -4/Garrison Botlord-Mutant | -4/Factory Botlord-Mutant | -4/Garrison Botlord-Mutant | -3/Research Botlord-Mutant | -3/Garrison Botlord-Mutant | -3/Research Botlord-Mutant | -3/Garrison Botlord-Mutant | -2/Research Botlord-Mutant | -2/Garrison Botlord-Mutant | -1/Access Scavenger-Mutant | -1/Garrison Botlord-Mutant | -1/Access Resources | -11 -10 -10 -10 -9 -8 -8 -8 -7 -7 -7 -7 -6 -6 -6 -6 -5 -5 -5 -5 -4 -4 -4 -4 -3 -3 -3 -3 -2 -2 -1 -1 -1 ----------- Run | Jun Mat Min Exi Min Mat Sto Gar Fac Gar Fac Gar Fac Gar Fac Gar Fac Gar Fac Gar Fac Gar Fac Gar Res Gar Res Gar Res Gar Acc Gar Acc Matter Collected 41025 | 274 481 122 . 20 1175 517 589 88 901 326 1062 11 1176 112 1375 1000 2420 60 1495 1851 2412 751 2090 958 2891 3232 2351 1722 1907 2683 3625 1348 Remotely 8170 | . . . . . . . . . . . . . . . . 46 . . . . . . . . . 1067 1096 685 1129 1432 2233 482 Salvage Created 30254 | 150 575 302 . 7 2137 1360 394 35 602 408 308 . 534 . 443 684 1889 . 453 1107 1395 1576 1748 1223 1895 1882 960 1070 892 2045 2329 1851 Parts 1330 | 9 44 9 . 4 129 76 23 4 21 11 8 . 26 . 24 49 63 . 12 68 46 49 70 43 55 105 39 55 23 102 76 87 Haulers Intercepted 9 | . 2 . . . 2 2 . . . . . . . . . . . . . . . . . . . . . . . 2 . 1 Recyclers Shooed 16 | . . . . . 5 1 . . . . . . . . . . . . . 2 . . . 3 . 2 . 1 . 1 . 1 Parts Field Recycled 6 | . . . . . . . . . . . . . 6 . . . . . . . . . . . . . . . . . . . Retrieved Matter 47 | . . . . . . . . . . . . . 47 . . . . . . . . . . . . . . . . . . . Parts Self-Destructed . | . . . . . . . . . . . . . . . . . . . . . . . . . . . . . . . . . Prevented . | . . . . . . . . . . . . . . . . . . . . . . . . . . . . . . . . . Kills | -11 -10 -10 -10 -9 -8 -8 -8 -7 -7 -7 -7 -6 -6 -6 -6 -5 -5 -5 -5 -4 -4 -4 -4 -3 -3 -3 -3 -2 -2 -1 -1 -1 ------- Run | Jun Mat Min Exi Min Mat Sto Gar Fac Gar Fac Gar Fac Gar Fac Gar Fac Gar Fac Gar Fac Gar Fac Gar Res Gar Res Gar Res Gar Acc Gar Acc Combat Hostiles Destroyed 534 | . 16 6 . . 44 22 14 1 12 9 4 . 7 . 16 12 27 . 10 20 21 15 29 18 45 28 21 19 18 33 42 25 Melee 34 | . . . . . . . . . 1 . 3 . 1 . 1 . 2 . . 2 2 1 . 3 7 3 2 1 . 1 4 . Guns 2 | . 2 . . . . . . . . . . . . . . . . . . . . . . . . . . . . . . . Cannons 395 | . 7 2 . . 14 16 12 1 10 9 1 . 6 . 8 12 16 . 10 18 15 13 26 15 26 25 19 17 16 32 36 13 AOE 97 | . 7 4 . . 27 4 2 . 1 . . . . . 7 . 9 . . . 4 1 3 . 12 . . 1 2 . 2 11 Classes Destroyed 26 | 2 7 1 . . 5 . 2 . . . . . 1 . 1 1 . . . . 1 . . . 1 . . . . 1 . 3 Worker 23 | . 1 . . 1 2 2 . . . . . . . . . 2 . . . 4 . 6 . 1 . 1 . . . . . 3 Builder 42 | . 1 . . 1 9 2 . . . . . . . . . 8 . . . 7 . 3 . . . 3 . 2 . 5 . 1 Tunneler 4 | 3 . . . . . . . . . . . . . . . . . . . . . . . . . . . 1 . . . . Hauler 9 | . 2 . . . 2 2 . . . . . . . . . . . . . . . . . . . . . . . 2 . 1 Recycler 25 | 1 . 3 . . 3 1 . . . 1 . . . . . 1 . . . 1 . 5 . 2 . 2 . 1 . 3 . 1 Mechanic 1 | . . . . . . . . . . . . . . . . . . . . . . . . . . . . . . . . 1 Operator 6 | . 1 . . . . . . . . . . . . . . 1 . . . 3 . . . . . . . . . . 1 . Watcher 18 | . 3 . . . 4 2 . . . . . . . . . . . . . . 1 1 . . . 2 . 1 . 2 1 1 Swarmer 71 | . 6 . . . 4 3 3 . . . 1 . . . 3 1 11 . . 3 2 . 3 . 6 . 1 3 3 3 12 3 Cutter 13 | . . . . . 3 . 1 . . . . . . . 3 . . . . . . . . . 4 . . . . . . 2 Saboteur 4 | . . . . . . . . . . . . . . . . . . . . . . . . . 3 . . . . . . 1 Grunt 181 | . 10 4 . . 25 8 5 . 8 3 2 . 3 . 4 2 4 . 1 8 6 8 8 5 21 11 2 3 8 3 14 5 Brawler 11 | . . . . . . . . . . . . . . . . 1 4 . . . . 2 . . 1 . . 1 . . 1 1 Duelist 11 | . . . . . 2 . . . . . 1 . . . 1 . 1 . . . . . . . 1 . . . . 1 4 . Protector 2 | . . . . . 1 . . . . . . . . . . . . . . . . . . . . 1 . . . . . . Sentry 77 | . . . . . 8 11 4 . 3 1 . . 3 . . . . . 6 1 6 1 8 3 4 5 7 . . 1 5 . Demolisher 2 | . . . . . . . . . . . . . . . . . . . . . . . . . . . . . . 1 . 1 Specialist 16 | . . . . . . . . . . . . . . . . . . . . . 2 . 1 2 5 . . . . . 5 1 Hunter 36 | . . . . . . . 1 . . . . . . . . 1 4 . 1 2 5 . 5 2 . . 2 1 2 2 6 2 Programmer 106 | . . . . . . . 1 1 1 4 . . 1 . 4 7 2 . 1 6 . 4 2 6 . 13 6 11 3 22 2 9 Heavy 3 | . . . . . 1 . . . . . . . . . . . . . . . . . 1 . . 1 . . . . . . Behemoth 11 | . . . . . . . . . . . . . . . 1 . 1 . 1 . 1 . 1 . 1 . 2 . 2 . 1 . Investigator 1 | . . . . . . . . . . . . . . . . . . . . . . . . . . . . . . . . 1 Striker 3 | . . . . . . . . . . . . . . . . . . . . . . . . . . . . . . . . 3 Executioner 2 | . . . . . . . . . . . . . 2 . . . . . . . . . . . . . . . . . . . Assembled 2 | . . 2 . . . . . . . . . . . . . . . . . . . . . . . . . . . . . . Thug 1 | . . . . . . . . . . . . . . . . . . . . . . . . . . . 1 . . . . . Butcher 1 | . . . . . . . . . . 1 . . . . . . . . . . . . . . . . . . . . . . Best Kill Streak 14 | 3 9 2 . 1 14 6 6 1 3 2 2 . 2 . 7 3 5 . 1 6 7 12 8 6 12 7 3 4 3 5 7 13 Combat Bots Only 12 | . 8 2 . . 9 3 6 1 3 2 2 . 2 . 7 2 5 . 1 3 7 6 8 6 12 4 3 4 3 5 7 11 Max Kills in Single Turn 7 | 1 2 2 . 1 4 2 2 1 1 2 1 . 1 . 3 1 3 . 1 4 3 7 1 1 3 1 1 1 1 1 2 6 Gunslinging . | . . . . . . . . . . . . . . . . . . . . . . . . . . . . . . . . . Exploded 4 | . 1 1 . . 4 1 2 . 1 . . . . . 3 . 3 . . . 3 1 1 . 3 . . 1 1 . 2 4 Melee 1 | . . . . . . . . . 1 . 1 . 1 . 1 . 1 . . 1 1 1 . 1 1 1 1 1 . 1 1 . Uniques/NPCs Destroyed . | . . . . . . . . . . . . . . . . . . . . . . . . . . . . . . . . . Combat | -11 -10 -10 -10 -9 -8 -8 -8 -7 -7 -7 -7 -6 -6 -6 -6 -5 -5 -5 -5 -4 -4 -4 -4 -3 -3 -3 -3 -2 -2 -1 -1 -1 -------- Run | Jun Mat Min Exi Min Mat Sto Gar Fac Gar Fac Gar Fac Gar Fac Gar Fac Gar Fac Gar Fac Gar Fac Gar Res Gar Res Gar Res Gar Acc Gar Acc Damage Taken 37348 | . 609 278 . 4 2621 792 951 . 1587 434 500 . 267 . 1101 1074 1328 79 762 955 1954 602 1255 818 2669 1544 1997 646 1700 1655 3504 5662 Core 3618 | . 153 60 . . 269 24 100 . 105 . 5 . 17 . 111 169 77 . 43 38 84 31 39 76 249 110 65 11 164 37 113 1468 Absorbed by Shields 18788 | . . . . . . . 71 . 18 . . . . . . . 214 . 310 1008 1759 643 1168 820 1691 1612 2063 667 1712 1703 1970 1359 Reduced by Siege Mode 2481 | . . . . . . . . . . . . . . . . . . . 21 102 118 43 165 114 503 176 288 127 219 269 336 . Regen/Repaired (Parts) 1312 | . 123 . . . 357 . . . . 89 . . . . . 281 . . . 84 . . . 55 . 198 . 73 . 52 . . Core Remaining (%) 68 | 100 . . . 14 . . 28 . . . 84 . . . 84 . . . 71 . . . 83 . . . 61 . 87 . . . Volleys Fired 2082 | 7 52 18 . 9 90 46 55 9 61 39 31 2 44 18 59 69 101 10 83 91 109 42 88 53 124 109 86 88 85 158 159 87 Largest 4 | 2 2 2 . 1 2 2 2 2 1 1 1 1 2 1 2 2 1 1 1 2 2 2 2 2 2 2 2 2 2 2 3 4 Hottest 428 | 40 80 120 . 60 131 126 88 92 60 75 75 5 130 65 130 130 75 10 75 130 130 132 132 132 132 132 132 132 132 132 360 428 Shots Fired 3067 | 14 97 32 . 9 142 88 89 12 62 39 31 2 51 18 82 79 102 10 86 131 156 67 150 84 198 177 148 125 127 246 292 121 Gun 73 | 14 59 . . . . . . . . . . . . . . . . . . . . . . . . . . . . . . . Cannon 2308 | . 31 26 . 7 116 85 87 8 40 26 3 . 25 1 58 55 74 . 59 99 97 56 128 63 154 136 131 85 100 195 276 87 Launcher 76 | . 7 6 . 2 26 3 1 . . . . . . . 5 . 3 . . . 3 . 4 . 6 . . . . . 1 9 Special 610 | . . . . . . . 1 4 22 13 28 2 26 17 19 24 25 10 27 32 56 11 18 21 38 41 17 40 27 51 15 25 Kinetic 2017 | 14 59 . . . 4 3 87 8 40 26 3 . 25 1 58 55 74 . 59 99 97 56 128 63 154 136 131 85 100 195 257 . Thermal 148 | . 31 26 . 2 28 . . . . . . . . . . . . . . . . . . . . . . . . . 13 48 Explosive 76 | . 7 6 . 2 26 3 1 . . . . . . . 5 . 3 . . . 3 . 4 . 6 . . . . . 1 9 Electromagnetic 216 | . . . . 5 84 82 . . . . . . . . . . . . . . . . . . . . . . . . 6 39 Robot Hit Streak 59 | 9 10 5 . . 12 13 16 11 13 6 6 7 8 5 14 11 13 22 17 13 38 9 59 14 23 29 50 16 37 30 17 11 Robot Miss Streak 5 | 1 4 4 . . 3 1 4 3 4 3 2 . 3 1 3 2 3 . 2 3 2 2 4 2 5 2 3 3 4 4 3 2 Penetration Max 1 | . . . . . . . . . . 1 . . . . . . . . . . . . . . . 1 1 1 . 1 1 . Secondary Targets . | . . . . . . . . . . . . . . . . . . . . . . . . . . . . . . . . . Shots Hit Robots 2337 | 11 57 13 . . 113 65 51 7 37 26 41 1 44 13 46 59 95 9 59 116 142 59 128 71 178 158 130 84 90 177 191 66 Core Hits 1013 | 7 38 12 . 1 95 39 19 1 12 8 7 . 11 . 27 24 39 . 15 36 40 34 67 26 87 54 38 29 30 53 81 83 Critical Kills . | . . . . . . . . . . . . . . . . . . . . . . . . . . . . . . . . . Critical Parts Destroyed . | . . . . . . . . . . . . . . . . . . . . . . . . . . . . . . . . . Critical Strikes 169 | . . . . . 2 2 3 . 6 2 2 . . 1 6 2 9 . 8 14 14 6 14 4 11 16 7 6 3 14 15 2 Blast 123 | . . . . . . 1 3 . 2 2 . . . 1 5 1 3 . 8 9 8 5 10 4 10 12 7 5 3 11 13 . Corrupt 4 | . . . . . 1 1 . . . . . . . . . . . . . . . . . . . . . . . . . 2 Sever 7 | . . . . . 1 . . . 4 . 2 . . . . . . . . . . . . . . . . . . . . . Impale 35 | . . . . . . . . . . . . . . . 1 1 6 . . 5 6 1 4 . 1 4 . 1 . 3 2 . Melee Attacks 675 | . . . . 1 22 15 3 3 12 . 64 1 24 . 30 37 81 . 20 57 27 23 28 19 35 51 14 23 7 44 34 . Impact . | . . . . . . . . . . . . . . . . . . . . . . . . . . . . . . . . . Slashing 125 | . . . . 1 22 15 3 3 12 . 64 . . . . . . . . . . . . . . 5 . . . . . . Piercing 550 | . . . . . . . . . . . . 1 24 . 30 37 81 . 20 57 27 23 28 19 35 46 14 23 7 44 34 . Sneak Attacks 158 | . . . . . 12 3 1 . 2 . 4 . 9 . 1 9 2 . . 25 4 9 . 7 13 22 9 6 . 6 14 . Combat Hostiles 59 | . . . . . . . . . 2 . 3 . 2 . 1 1 1 . . 7 2 2 . 4 13 9 7 1 . 1 3 . Follow-up Attacks . | . . . . . . . . . . . . . . . . . . . . . . . . . . . . . . . . . Damage Inflicted 107166 | 93 1239 544 . 65 6209 2456 1550 97 1312 1315 1123 . 1512 53 2093 2955 6436 . 2615 6101 5126 3745 6942 3000 10052 6832 5490 3101 3113 6647 9681 5669 Guns 398 | 93 305 . . . . . . . . . . . . . . . . . . . . . . . . . . . . . . . Cannons 68257 | . 367 191 . . 1963 1659 1276 97 954 1307 130 . 600 42 1132 1779 2557 . 2558 3423 3512 2019 4249 2315 5514 4924 4594 2392 2937 5867 7844 2055 Explosions 15632 | . 567 325 . 48 3380 532 202 . . . . . . . 761 162 771 . . 346 640 763 884 . 2555 1 . . . . 280 3415 Melee 22117 | . . . . . 794 206 72 . 358 . 993 . 912 . 200 846 3108 . 57 2318 974 912 1809 676 1983 1858 896 669 176 743 1557 . Ramming 762 | . . 28 . 17 72 59 . . . 8 . . . 11 . 168 . . . 14 . 51 . 9 . 49 . 40 . 37 . 199 Kinetic 62580 | 93 305 . . . 73 87 1276 97 954 1307 130 . 600 42 1132 1779 2557 . 2558 3423 3512 2019 4249 2315 5514 4924 4594 2392 2937 5867 7844 . Thermal 3291 | . 367 191 . . 664 201 . . . . . . . . . . . . . 346 . 688 . . . . . . . . . 834 Explosive 13916 | . 567 325 . 48 3062 331 202 . . . . . . . 761 . 771 . . . 640 75 884 . 2555 . . . . . 280 3415 Electromagnetic 4500 | . . . . . 1544 1572 . . . . . . . . . 162 . . . . . . . . . 1 . . . . . 1221 Impact . | . . . . . . . . . . . . . . . . . . . . . . . . . . . . . . . . . Slashing 2594 | . . . . . 794 206 72 . 358 . 993 . . . . . . . . . . . . . . 171 . . . . . . Piercing 19523 | . . . . . . . . . . . . . 912 . 200 846 3108 . 57 2318 974 912 1809 676 1983 1687 896 669 176 743 1557 . Highest Corruption 23 | . . . . . . . . 1 3 8 8 . 1 1 7 6 9 9 9 7 2 13 13 3 13 16 20 1 2 17 15 23 Average Corruption 7 | . . . . . . . . 1 1 4 8 . 1 1 4 3 7 9 9 4 2 4 13 2 10 10 19 1 1 6 10 12 Corruption Purged 31 | . . . . . . . . . . . . . . . . . . . . 5 . . . . 10 . . . . 9 7 . Corruption Blocked . | . . . . . . . . . . . . . . . . . . . . . . . . . . . . . . . . . Effects 1035 | . . . . . . . . 3 18 23 66 . 1 1 55 15 93 6 60 51 44 28 96 4 34 91 89 . 25 31 150 51 Message Errors 264 | . . . . . . . . 1 3 8 18 . . . 13 6 20 2 18 13 8 4 22 1 8 33 27 . 6 11 34 8 Matter Fused 239 | . . . . . . . . 1 3 5 15 . . . 22 3 20 . 11 15 13 2 17 1 12 21 16 . 7 5 42 8 Heat Flow Errors 121 | . . . . . . . . . 1 4 9 . . . 4 3 11 1 4 5 5 6 19 . 4 10 9 . 3 5 13 5 Energy Discharges 127 | . . . . . . . . 1 2 2 5 . . . 5 1 14 . 8 10 4 6 12 1 5 10 10 . 3 3 21 4 Parts Rejected 20 | . . . . . . . . . 2 . . . . . . . 3 . . . . 2 2 . . 2 2 . . . 3 4 Parts Fused 13 | . . . . . . . . . . . 3 . . . 1 . 2 1 1 1 . . . . 1 . . . . . 2 1 Data Loss (minor) 114 | . . . . . . . . . 3 1 11 . 1 . 6 . 11 . 13 4 5 5 10 1 2 6 8 . 3 4 14 6 Data Loss (major) 46 | . . . . . . . . . 1 . 4 . . 1 3 1 5 . 1 1 3 . 4 . . 2 6 . . 2 9 3 Misfires 34 | . . . . . . . . . 1 1 . . . . 1 . 3 . 3 1 2 1 4 . 1 5 2 . 1 . 6 2 Alerts 25 | . . . . . . . . . 2 1 1 . . . . . 2 2 1 . 2 . 2 . 1 2 3 . 2 . 3 1 Misdirections 7 | . . . . . . . . . . . . . . . . . . . . . . . . . . . . . . . . 7 Weapon Failures 25 | . . . . . . . . . . 1 . . . . . 1 2 . . 1 2 2 4 . . . 6 . . 1 3 2 Overload Shots . | . . . . . . . . . . . . . . . . . . . . . . . . . . . . . . . . . Overflow Damage 7112 | . 27 . . . 207 22 192 . 35 224 108 . 69 . 187 494 381 . 71 990 373 398 407 230 388 472 168 311 90 532 504 232 Projectiles 3183 | . . . . . 3 . 50 . 35 224 29 . 29 . 162 197 142 . 71 301 63 97 155 116 141 323 125 134 90 316 358 22 Explosions 974 | . 27 . . . 154 22 142 . . . . . . . 25 . 82 . . 118 . 134 . . 90 . . . . . 45 135 Melee 2955 | . . . . . 50 . . . . . 79 . 40 . . 297 157 . . 571 310 167 252 114 157 149 43 177 . 216 101 75 Knockbacks 322 | . . . . . 4 1 13 . 1 3 . . 3 . 4 10 6 . 2 19 23 11 24 14 17 48 11 15 14 32 45 2 Impact 9 | . . . . . 3 1 . . . . . . . . . 2 . . . . . . . . . 1 . . . . . 2 Kinetic 285 | . . . . . 1 . 13 . 1 3 . . 3 . 4 8 4 . 2 18 22 10 21 12 17 39 11 14 11 30 41 . Secondary 28 | . . . . . . . . . . . . . . . . . 2 . . 1 1 1 3 2 . 8 . 1 3 2 4 . Self-Inflicted Damage 613 | . 30 . . 4 125 . . . . . . . . . . . . . . . . . 81 . . . . . . . 47 326 Shots 13 | . 1 . . 1 3 . . . . . . . . . . . . . . . . . 3 . . . . . . . 1 4 Rammed 40 | . . 5 . 2 5 5 . . . 2 . . . 1 . 4 . . . 1 . 4 . . . 3 . 1 . 3 . 4 Targets Rammed 54 | . . 6 . 3 8 6 . . . 2 . . . 1 . 7 . . . 1 . 4 . 1 . 3 . 1 . 4 . 7 Kicked 3 | . . . . . . . . . . . . . . . . . . . . . . . . . . . . . . . . 3 Crushed 11 | . . 1 . 1 3 1 . . . . . . . . . 3 . . . . . . . 1 . . . . . 1 . . Highest Temperature 427 | . 183 32 . . 320 140 25 . 151 213 225 . 171 18 427 197 274 99 219 231 266 198 255 184 247 245 285 164 367 211 239 302 Average Temperature 61 | . 56 19 . . 50 31 7 . 51 80 100 . 49 9 103 69 95 51 55 67 48 47 78 61 72 51 59 51 48 53 57 65 Received Heat Transfer 4892 | . 234 153 . . 810 279 312 . 354 96 105 . 48 . 93 228 105 9 118 134 264 57 135 98 272 229 195 22 156 68 140 178 Effects 3 | . . . . . 1 . . . . . . . . . 1 . . . . . . . 1 . . . . . . . . . Energy Bleed 3 | . . . . . 1 . . . . . . . . . 1 . . . . . . . 1 . . . . . . . . . Siege Activations 143 | . . . . . . . . . . . . . . . . . . . 7 10 7 6 15 6 13 13 11 11 9 16 19 . Total Turns 2610 | . . . . . . . . . . . . . . . . . . . 96 208 187 116 200 94 211 186 247 166 135 325 439 . Longest Duration 111 | . . . . . . . . . . . . . . . . . . . 21 32 91 41 33 24 45 27 46 42 37 89 111 . Robots Corrupted 8 | . . . . . 3 2 . . . . . . . . . . . . . . . . . . . . . . . . . 3 Combat Hostiles 6 | . . . . . 3 2 . . . . . . . . . . . . . . . . . . . . . . . . . 1 Parts Fried 38 | . . . . . 9 8 . . . . . . . . . 7 . . . . . . . . . . . . . . . 14 Impact Corruptions 11 | . . . . . . . . . . . . . . . . 2 . . . . . 1 . 1 . 4 . 1 . . . 2 Robots Melted . | . . . . . . . . . . . . . . . . . . . . . . . . . . . . . . . . . Combat Hostiles . | . . . . . . . . . . . . . . . . . . . . . . . . . . . . . . . . . Parts Melted 11 | . 2 . . . 5 . . . 1 . . . . . . . . . . . . . . . . . . . 1 1 . 1 Heat Transferred 3815 | . 777 407 . . 1103 200 . . . . . . . . . . . . . 250 . 450 . . . . . . . . . 628 Parts Sabotaged . | . . . . . . . . . . . . . . . . . . . . . . . . . . . . . . . . . Parts Stolen . | . . . . . . . . . . . . . . . . . . . . . . . . . . . . . . . . . Parts Stripped . | . . . . . . . . . . . . . . . . . . . . . . . . . . . . . . . . . Power Chain Reactions 7 | . . . . . 5 2 . . . . . . . . . . . . . . . . . . . . . . . . . . Missiles Intercepted . | . . . . . . . . . . . . . . . . . . . . . . . . . . . . . . . . . Alert | -11 -10 -10 -10 -9 -8 -8 -8 -7 -7 -7 -7 -6 -6 -6 -6 -5 -5 -5 -5 -4 -4 -4 -4 -3 -3 -3 -3 -2 -2 -1 -1 -1 ------- Run | Jun Mat Min Exi Min Mat Sto Gar Fac Gar Fac Gar Fac Gar Fac Gar Fac Gar Fac Gar Fac Gar Fac Gar Res Gar Res Gar Res Gar Acc Gar Acc Peak Influence 2219 | 20 287 96 . 32 886 532 968 508 978 548 812 426 1024 693 1250 692 1643 862 667 359 1110 848 1661 933 1593 937 970 599 1056 679 2219 1846 Initial 1331 | . 13 30 . . 12 354 163 508 184 513 79 426 278 537 189 655 287 862 180 350 67 582 498 933 425 895 393 545 85 633 493 1331 Average 592 | 6 169 33 . 7 588 323 561 333 526 358 374 413 669 453 794 363 934 664 381 62 477 509 1102 568 1021 504 706 193 557 488 1207 1614 Maximum Alert Level 5 | . 1 . . . 3 2 3 2 3 2 3 2 3 2 4 2 5 3 2 1 4 3 5 3 4 3 3 2 3 2 5 5 Low Security (%) 18 | 100 71 100 . 100 5 8 9 . 4 30 40 . . 15 4 8 . . 2 98 24 . . . . . . 66 13 . . . Level 1 19 | . 28 . . . 16 78 19 97 27 11 9 . 13 30 6 62 8 30 60 1 20 15 . . . 31 4 10 27 25 2 . Level 2 31 | . . . . . 36 13 31 2 46 57 37 100 55 54 28 29 21 3 37 . 31 76 17 92 19 52 48 23 20 74 27 . Level 3 18 | . . . . . 40 . 39 . 20 . 12 . 30 . 45 . 34 66 . . 22 8 28 7 38 15 46 . 37 . 17 . Level 4 8 | . . . . . . . . . . . . . . . 15 . 32 . . . . . 45 . 41 . . . . . 18 35 Level 5 3 | . . . . . . . . . . . . . . . . . 3 . . . . . 9 . . . . . . . 33 10 High Security . | . . . . . . . . . . . . . . . . . . . . . . . . . . . . . . . . 54 Max Security . | . . . . . . . . . . . . . . . . . . . . . . . . . . . . . . . . . Squads Dispatched 121 | . 5 . . . 6 1 . 2 . 3 . 1 . 2 . 9 . 1 . 7 . 8 . 6 . 13 . 10 . 16 . 31 Investigation 19 | . 3 . . . 1 . . . . . . . . . . 2 . 1 . 3 . 2 . 2 . 2 . 2 . 1 . . Extermination 35 | . . . . . . . . 1 . 2 . 1 . 1 . 3 . . . 3 . 3 . 2 . 6 . 5 . 7 . 1 Reinforcement 25 | . 2 . . . 4 1 . . . 1 . . . 1 . 2 . . . 1 . 1 . 1 . 3 . 2 . 2 . 4 Assault 38 | . . . . . 1 . . . . . . . . . . 2 . . . . . 2 . 1 . 2 . 1 . 3 . 26 Garrison 4 | . . . . . . . . 1 . . . . . . . . . . . . . . . . . . . . . 3 . . Intercept . | . . . . . . . . . . . . . . . . . . . . . . . . . . . . . . . . . Searches Triggered . | . . . . . . . . . . . . . . . . . . . . . . . . . . . . . . . . . Construction Impeded 5 | . . . . . 1 . . . . 1 . . . 1 . . . . . . . . . . . . . 1 . . . 1 Haulers Reinforced 3 | . . . . . . . . . . . . . . . . . . . . . . 1 . . . 1 . . . . . 1 Active Scanning Responses . | . . . . . . . . . . . . . . . . . . . . . . . . . . . . . . . . . Cargo Convoy Interrupts . | . . . . . . . . . . . . . . . . . . . . . . . . . . . . . . . . . Alert ID Control Effect 126 | . . . . . . . . . 1 . 6 . 3 . 6 2 . . 8 8 13 1 12 3 1 13 1 3 5 4 6 30 Stealth | -11 -10 -10 -10 -9 -8 -8 -8 -7 -7 -7 -7 -6 -6 -6 -6 -5 -5 -5 -5 -4 -4 -4 -4 -3 -3 -3 -3 -2 -2 -1 -1 -1 --------- Run | Jun Mat Min Exi Min Mat Sto Gar Fac Gar Fac Gar Fac Gar Fac Gar Fac Gar Fac Gar Fac Gar Fac Gar Res Gar Res Gar Res Gar Acc Gar Acc Distress Signals 24 | . 1 . . . 3 1 . . . . . . . . . 1 . . . 4 . . 1 2 . 6 . 1 . 1 . 3 Communications Jammed 595 | . . . . . . . . . . . . . . . . 64 . . . 84 23 38 . 9 . 45 . 5 . 32 . 295 Distress Signals 593 | . . . . . . . . . . . . . . . . 64 . . . 84 23 37 . 9 . 45 . 5 . 32 . 294 Times Spotted 1207 | . 27 5 . . 61 28 21 4 31 15 27 1 24 7 39 46 41 2 29 47 58 41 45 38 56 68 32 43 47 71 77 176 Peak Tracking Total 35 | . 8 2 . . 7 3 4 2 8 2 4 1 3 2 9 8 5 1 5 5 5 10 7 7 8 5 5 5 4 5 20 35 Tactical Retreats 54 | . 1 . . . 4 2 . . 5 2 1 . . . . 2 3 . 2 2 . 1 2 1 . 1 1 2 3 5 9 5 Traps | -11 -10 -10 -10 -9 -8 -8 -8 -7 -7 -7 -7 -6 -6 -6 -6 -5 -5 -5 -5 -4 -4 -4 -4 -3 -3 -3 -3 -2 -2 -1 -1 -1 ------- Run | Jun Mat Min Exi Min Mat Sto Gar Fac Gar Fac Gar Fac Gar Fac Gar Fac Gar Fac Gar Fac Gar Fac Gar Res Gar Res Gar Res Gar Acc Gar Acc Traps Triggered 57 | . 1 . . . 2 . 5 1 3 . 2 2 2 . 6 1 6 . 1 . 3 3 3 . 3 4 2 . 2 1 3 1 Indirectly . | . . . . . . . . . . . . . . . . . . . . . . . . . . . . . . . . . Trap Hack Attempts . | . . . . . . . . . . . . . . . . . . . . . . . . . . . . . . . . . Triggered . | . . . . . . . . . . . . . . . . . . . . . . . . . . . . . . . . . Disarmed . | . . . . . . . . . . . . . . . . . . . . . . . . . . . . . . . . . Reprogrammed . | . . . . . . . . . . . . . . . . . . . . . . . . . . . . . . . . . Reused 2 | . . . . . . . . . . . . . . . . . 2 . . . . . . . . . . . . . . . Traps Extracted . | . . . . . . . . . . . . . . . . . . . . . . . . . . . . . . . . . Installed 4 | . . . . . . . . . . . . . . . . . 4 . . . . . . . . . . . . . . . Triggered 2 | . . . . . . . . . . . . . . . . . 2 . . . . . . . . . . . . . . . Most Traps Carried 7 | . . 2 2 2 2 . . . . . . . . . . . 7 . . . . . . . . . . . . . . . Machines | -11 -10 -10 -10 -9 -8 -8 -8 -7 -7 -7 -7 -6 -6 -6 -6 -5 -5 -5 -5 -4 -4 -4 -4 -3 -3 -3 -3 -2 -2 -1 -1 -1 ---------- Run | Jun Mat Min Exi Min Mat Sto Gar Fac Gar Fac Gar Fac Gar Fac Gar Fac Gar Fac Gar Fac Gar Fac Gar Res Gar Res Gar Res Gar Acc Gar Acc Machines Disabled 152 | . 4 1 . 1 3 5 5 . 6 1 4 . 4 1 9 9 8 . 8 6 6 14 10 2 7 7 6 3 5 4 10 3 Max in Single Turn 14 | . 1 1 . 1 1 1 1 . 1 1 1 . 1 . 1 2 1 . 1 2 1 14 1 1 1 1 1 1 1 1 1 1 Garrison Access 4 | . . . . . . . . . . . . . . . . 2 . . . . . . . . . . . . . . . 2 Garrison Relay 63 | . . . . . . . 4 . 5 . 4 . 4 . 5 . 6 . 5 . 5 . 4 . 6 . 5 . 5 . 5 . Energy Cycler 1 | . . . . . . . . . . . . . . . . . . . . . . . . . . . . . . . . 1 Machines Repaired . | . . . . . . . . . . . . . . . . . . . . . . . . . . . . . . . . . Machines Sabotaged . | . . . . . . . . . . . . . . . . . . . . . . . . . . . . . . . . . Overloaded Fab Kills . | . . . . . . . . . . . . . . . . . . . . . . . . . . . . . . . . . Hacking | -11 -10 -10 -10 -9 -8 -8 -8 -7 -7 -7 -7 -6 -6 -6 -6 -5 -5 -5 -5 -4 -4 -4 -4 -3 -3 -3 -3 -2 -2 -1 -1 -1 --------- Run | Jun Mat Min Exi Min Mat Sto Gar Fac Gar Fac Gar Fac Gar Fac Gar Fac Gar Fac Gar Fac Gar Fac Gar Res Gar Res Gar Res Gar Acc Gar Acc Machines Accessed 156 | . 8 . 2 . 12 14 3 4 4 6 3 3 5 2 1 12 2 2 4 11 2 8 3 7 2 10 3 8 4 7 4 . Terminals 104 | . 5 . . . 9 12 3 3 4 3 3 2 5 1 1 5 2 1 4 6 2 2 3 2 2 5 3 4 4 4 4 . Fabricators 18 | . . . . . . . . . . 1 . . . . . 3 . . . 2 . 4 . 2 . 2 . 3 . 1 . . Repair Stations 10 | . 1 . . . 2 . . . . 1 . . . . . 2 . . . 1 . . . 2 . 1 . . . . . . Recycling Units 5 | . 2 . . . . 1 . . . . . . . . . . . . . . . 1 . . . 1 . . . . . . Scanalyzers 3 | . . . . . 1 . . . . . . . . . . 1 . . . 1 . . . . . . . . . . . . Garrison Access 14 | . . . . . . 1 . 1 . 1 . 1 . 1 . 1 . 1 . 1 . 1 . 1 . 1 . 1 . 2 . . Total Hacks 347 | . 17 . 2 . 37 30 5 7 6 17 6 6 12 4 2 29 4 7 8 29 4 16 6 10 4 18 4 21 10 14 12 . Successful 167 | . 7 . 2 . 18 16 2 3 3 10 2 3 3 3 . 16 2 4 3 19 2 9 . 5 1 7 3 13 3 7 1 . Failed 179 | . 9 . . . 19 14 3 4 3 7 4 3 9 1 2 13 2 3 5 10 2 7 6 5 3 11 1 8 7 7 11 . Catastrophic 51 | . 2 . . . 1 2 2 2 2 1 . 1 4 . . 3 1 1 3 3 1 1 3 . . 4 1 3 3 3 4 . Database Lockouts 1 | . 1 . . . . . . . . . . . . . . . . . . . . . . . . . . . . . . . Manual 144 | . 6 . 1 . 23 14 1 6 1 7 1 4 1 2 . 16 . 1 1 13 . 10 . 7 . 11 1 9 1 7 . . Terminals 227 | . 13 . . . 26 27 5 6 6 5 6 2 12 2 2 13 4 4 8 15 4 6 6 3 4 11 4 6 10 5 12 . Fabricators 50 | . . . . . . . . . . 5 . . . . . 8 . . . 6 . 7 . 3 . 3 . 14 . 4 . . Repair Stations 27 | . 2 . . . 7 . . . . 6 . . . . . 5 . . . 3 . . . 3 . 1 . . . . . . Recycling Units 8 | . 2 . . . . 2 . . . . . . . . . . . . . . . 2 . . . 2 . . . . . . Scanalyzers 8 | . . . . . 4 . . . . . . . . . . 2 . . . 2 . . . . . . . . . . . . Garrison Access 25 | . . . . . . 1 . 1 . 1 . 4 . 2 . 1 . 3 . 3 . 1 . 1 . 1 . 1 . 5 . . Terminal Hacks 54 | . 3 . 2 . 4 10 2 1 3 . 2 . 3 . . 2 2 1 3 4 2 1 . 1 1 . 3 . 3 . 1 . Record 1 | . . . 1 . . . . . . . . . . . . . . . . . . . . . . . . . . . . . Robot Analysis 2 | . 1 . . . . 1 . . . . . . . . . . . . . . . . . . . . . . . . . . Prototype ID Bank 1 | . 1 . . . . . . . . . . . . . . . . . . . . . . . . . . . . . . . Open Door 13 | . . . . . . 4 1 . 1 . . . 1 . . . 1 . . . 1 . . . 1 . 1 . 1 . 1 . Branch Access Points 1 | . . . . . . . . . . . . . . . . . . . . 1 . . . . . . . . . . . . Emergency Access Points 9 | . . . . . . . 1 . . . 1 . 1 . . . 1 . 1 1 1 . . . . . 1 . 1 . . . Scanalyzer Index 1 | . . . . . . . . . . . . . . . . 1 . . . . . . . . . . . . . . . . Alert Level 3 | . . . . . 1 2 . . . . . . . . . . . . . . . . . . . . . . . . . . Unreport Threat 5 | . . . . . 1 2 . 1 . . . . . . . . . 1 . . . . . . . . . . . . . . Locate Traps 5 | . 1 . . . 2 1 . . . . . . . . . . . . . 1 . . . . . . . . . . . . Hauler Manifests 4 | . . . . . . . . . . . . . . . . 1 . . . 1 . 1 . 1 . . . . . . . . Garrison Registry 3 | . . . . . . . . . 1 . . . . . . . . . 1 . . . . . . . 1 . . . . . Patrol Navigation 4 | . . . . . . . . . 1 . . . 1 . . . . . 1 . . . . . . . . . 1 . . . Security Stations 1 | . . . . . . . . . . . 1 . . . . . . . . . . . . . . . . . . . . . EX-Prototype ID Bank 1 | . . . 1 . . . . . . . . . . . . . . . . . . . . . . . . . . . . . Fabricator Hacks 18 | . . . . . . . . . . 2 . . . . . 3 . . . 2 . 2 . . . 1 . 7 . 1 . . Network Status 4 | . . . . . . . . . . 1 . . . . . 1 . . . . . 1 . . . . . . . 1 . . Load Schematic 10 | . . . . . . . . . . . . . . . . 2 . . . 2 . 1 . . . 1 . 4 . . . . Build 4 | . . . . . . . . . . 1 . . . . . . . . . . . . . . . . . 3 . . . . Repair Station Hacks 14 | . 2 . . . 6 . . . . 2 . . . . . 2 . . . 2 . . . . . . . . . . . . Scan Component 7 | . 1 . . . 3 . . . . 1 . . . . . 1 . . . 1 . . . . . . . . . . . . Repair 7 | . 1 . . . 3 . . . . 1 . . . . . 1 . . . 1 . . . . . . . . . . . . Recycling Unit Hacks 1 | . . . . . . 1 . . . . . . . . . . . . . . . . . . . . . . . . . . Retrieve Components 1 | . . . . . . 1 . . . . . . . . . . . . . . . . . . . . . . . . . . Scanalyzer 7 | . . . . . 3 . . . . . . . . . . 2 . . . 2 . . . . . . . . . . . . Insert Component 3 | . . . . . 1 . . . . . . . . . . 1 . . . 1 . . . . . . . . . . . . Analyze 4 | . . . . . 2 . . . . . . . . . . 1 . . . 1 . . . . . . . . . . . . Garrison Access Hacks 20 | . . . . . . 1 . 1 . 1 . 2 . 2 . 1 . 2 . 2 . 1 . 1 . 1 . 1 . 4 . . Unlock Access 14 | . . . . . . 1 . 1 . 1 . 1 . 1 . 1 . 1 . 1 . 1 . 1 . 1 . 1 . 2 . . Coupler Status 6 | . . . . . . . . . . . . 1 . 1 . . . 1 . 1 . . . . . . . . . 2 . . Unauthorized Hacks 53 | . 2 . . . 5 4 . 1 . 5 . 1 . 1 . 6 . 1 . 7 . 5 . 3 . 5 . 5 . 2 . . Terminals 23 | . . . . . 5 3 . 1 . 2 . . . 1 . 2 . . . 2 . 2 . 1 . 2 . 2 . . . . Assimilate 5 | . . . . . 3 1 . . . . . . . . . . . . . 1 . . . . . . . . . . . . Botnet 13 | . . . . . 1 2 . . . 1 . . . . . 2 . . . 1 . 1 . 1 . 2 . 2 . . . . Operators 5 | . . . . . 1 . . 1 . 1 . . . 1 . . . . . . . 1 . . . . . . . . . . Fabricators 16 | . . . . . . . . . . 2 . . . . . 3 . . . 3 . 2 . 1 . 1 . 3 . 1 . . Prioritize 2 | . . . . . . . . . . 1 . . . . . . . . . . . . . . . . . 1 . . . . Haulers 6 | . . . . . . . . . . 1 . . . . . 1 . . . 1 . 1 . . . . . 1 . 1 . . Recompile 8 | . . . . . . . . . . . . . . . . 2 . . . 2 . 1 . 1 . 1 . 1 . . . . Repair Stations 5 | . . . . . . . . . . 1 . . . . . 1 . . . 1 . . . 1 . 1 . . . . . . Mechanics 5 | . . . . . . . . . . 1 . . . . . 1 . . . 1 . . . 1 . 1 . . . . . . Recycling Units 5 | . 2 . . . . 1 . . . . . . . . . . . . . . . 1 . . . 1 . . . . . . Reject 1 | . . . . . . 1 . . . . . . . . . . . . . . . . . . . . . . . . . . Recyclers 2 | . . . . . . . . . . . . . . . . . . . . . . 1 . . . 1 . . . . . . Tunnel 2 | . 2 . . . . . . . . . . . . . . . . . . . . . . . . . . . . . . . Scanalyzers . | . . . . . . . . . . . . . . . . . . . . . . . . . . . . . . . . . Garrison Access 4 | . . . . . . . . . . . . 1 . . . . . 1 . 1 . . . . . . . . . 1 . . Watchers 1 | . . . . . . . . . . . . 1 . . . . . . . . . . . . . . . . . . . . Eject 3 | . . . . . . . . . . . . . . . . . . 1 . 1 . . . . . . . . . 1 . . Data Cores Recovered 2 | . 1 . . . . . . . . . . . . . . . . . . 1 . . . . . . . . . . . . Used 1 | . 1 . . . . . . . . . . . . . . . . . . . . . . . . . . . . . . . Hacking Detections 131 | . 6 . . . 12 10 2 4 2 5 3 3 5 2 1 12 1 1 4 9 1 6 3 5 1 9 2 8 4 6 4 . Full Trace Events 19 | . . . . . . . 1 . 1 . 1 . 4 . 1 . . . 1 . . 1 2 1 . 1 . 1 2 . 2 . Feedback Events 3 | . . . . . . . . . 1 . . . 1 . . . . . . . . 1 . . . . . . . . . . Corruption 3 | . . . . . . . . . 1 . . . 1 . . . . . . . . 1 . . . . . . . . . . Feedback Blocked . | . . . . . . . . . . . . . . . . . . . . . . . . . . . . . . . . . Robot Schematics Acquired . | . . . . . . . . . . . . . . . . . . . . . . . . . . . . . . . . . Robots Built 1 | . . . . . . . . . . 1 . . . . . . . . . . . . . . . . . . . . . . Authchips . | . . . . . . . . . . . . . . . . . . . . . . . . . . . . . . . . . Time 116 | . . . . . . . . . . 116 . . . . . . . . . . . . . . . . . . . . . . Total Robot Build Rating 3 | . . . . . . . . . . 3 . . . . . . . . . . . . . . . . . . . . . . Part Schematics Acquired 3 | . . . . . 1 . . . . . . . . . . 1 . . . 1 . . . . . . . . . . . . Parts Built 6 | . . . . . . . . . . . . . . . . . . . . . . . . . . . . 6 . . . . Authchips 3 | . . . . . . . . . . . . . . . . . . . . . . . . . . . . 3 . . . . Time 96 | . . . . . . . . . . . . . . . . . . . . . . . . . . . . 96 . . . . Total Part Build Rating 48 | . . . . . . . . . . . . . . . . . . . . . . . . . . . . 48 . . . . Parts Repaired 7 | . 1 . . . 3 . . . . 1 . . . . . 1 . . . 1 . . . . . . . . . . . . Time 272 | . 26 . . . 102 . . . . 38 . . . . . 38 . . . 68 . . . . . . . . . . . . Parts Recycled . | . . . . . . . . . . . . . . . . . . . . . . . . . . . . . . . . . Recycled Matter . | . . . . . . . . . . . . . . . . . . . . . . . . . . . . . . . . . Retrieved Matter . | . . . . . . . . . . . . . . . . . . . . . . . . . . . . . . . . . Retrieved Components 9 | . . . . . . 9 . . . . . . . . . . . . . . . . . . . . . . . . . . Parts Scanalyzed 3 | . . . . . 1 . . . . . . . . . . 1 . . . 1 . . . . . . . . . . . . Part Schematics Acquired 3 | . . . . . 1 . . . . . . . . . . 1 . . . 1 . . . . . . . . . . . . Parts Damaged . | . . . . . . . . . . . . . . . . . . . . . . . . . . . . . . . . . Bothacking | -11 -10 -10 -10 -9 -8 -8 -8 -7 -7 -7 -7 -6 -6 -6 -6 -5 -5 -5 -5 -4 -4 -4 -4 -3 -3 -3 -3 -2 -2 -1 -1 -1 ------------ Run | Jun Mat Min Exi Min Mat Sto Gar Fac Gar Fac Gar Fac Gar Fac Gar Fac Gar Fac Gar Fac Gar Fac Gar Res Gar Res Gar Res Gar Acc Gar Acc Used RIF Installer 14 | . . . . . . . 1 . 1 . 1 . 1 . 1 . 1 . 1 . 2 . 1 . 1 . 1 . 1 . 1 . Hotswap 1 | . . . . . . . . . . . . . . . . . . . . . . . . . 1 . . . . . . . Code Merge 1 | . . . . . . . . . . . . . . . . . 1 . . . . . . . . . . . . . . . Threat Obfuscator 2 | . . . . . . . . . . . 1 . . . 1 . . . . . . . . . . . . . . . . . Signal Jammer 1 | . . . . . . . . . . . . . . . . . . . 1 . . . . . . . . . . . . . Robot Detection 1 | . . . . . . . . . . . . . 1 . . . . . . . . . . . . . . . . . . . Watcher Feeds 1 | . . . . . . . . . . . . . . . . . . . . . . . . . . . 1 . . . . . Alert ID Control 1 | . . . . . . . . . 1 . . . . . . . . . . . . . . . . . . . . . . . Structural Interface 1 | . . . . . . . . . . . . . . . . . . . . . 1 . . . . . . . . . . . Program Shield 1 | . . . . . . . . . . . . . . . . . . . . . . . 1 . . . . . . . . . Autooverride 2 | . . . . . . . . . . . . . . . . . . . . . 1 . . . . . . . 1 . . . Crosswire 1 | . . . . . . . . . . . . . . . . . . . . . . . . . . . . . . . 1 . Robots Hacked 358 | . . . . . . . 1 2 11 3 14 1 9 3 11 13 15 2 12 14 19 5 10 10 19 27 12 22 20 34 30 39 Non-combat 60 | . . . . . . . . 2 . 3 . . . 2 . 5 . 1 . 4 . 2 . 4 . 10 . 8 . 13 . 6 Combat 298 | . . . . . . . 1 . 11 . 14 1 9 1 11 8 15 1 12 10 19 3 10 6 19 17 12 14 20 21 30 33 Autooverrided 62 | . . . . . . . . . . . . . . . . . . . . . 1 . . . 1 3 1 3 4 5 18 26 Robot Hacks Applied 353 | . . . . . . . 1 2 11 8 14 1 9 12 11 18 15 8 13 20 18 6 11 15 18 29 13 24 16 34 12 14 parse_system 6 | . . . . . . . . . . . . . 1 . . . . . . . . 1 1 . . . . 2 . 1 . . no_distress 2 | . . . . . . . . . . . . . . . . . . . . . . . . . . . . . . 2 . . generate_echo 1 | . . . . . . . . . . . . . . . . 1 . . . . . . . . . . . . . . . . find_chute 2 | . . . . . . . . 1 . . . . . . . . . . . 1 . . . . . . . . . . . . ignore_repairs 3 | . . . . . . . . . . . . . . . . . . . . . . . . . . 2 . . . 1 . . find_fabricator 8 | . . . . . . . . . . . . . . . . . . . . 2 . . . 1 . 1 . 3 . 1 . . drop_inventory 17 | . . . . . . . . . . 2 . . . 1 . . . . . 2 . 1 . . . . . 2 . 7 . 2 locate_stockpiles 1 | . . . . . . . . . . . . . . . . . . . . . . . . . . . . . . . . 1 purge_threat 27 | . . . . . . . . . . 4 . . . 5 . 4 . 4 . 2 . . . 3 . 3 . 2 . . . . block_reporting 5 | . . . . . . . . . . 1 . . . 1 . . . 1 . 1 . . . 1 . . . . . . . . summon_haulers 1 | . . . . . . . . . . . . . . 1 . . . . . . . . . . . . . . . . . . map_route 14 | . . . . . . . . 1 . . . . . . . . . . . . . . . . . 4 . 2 . 4 . 3 emergency_deploy 1 | . . . . . . . . . . . . . . . . . . . . . . . . . . . . 1 . . . . find_shortcuts 2 | . . . . . . . . . . . . . . . . . 1 . . . . . . . . . . . . 1 . . find_garrison 12 | . . . . . . . . . . . . . . 1 . 3 . 1 . 1 . 1 . 1 . 2 . 1 . 1 . . disrupt_area 4 | . . . . . . . . . . . . . 1 . . . 1 . . 1 1 . . . . . . . . . . . overload_power 1 | . . . . . . . . . . . . . . . . . . . . . . . . . . . . . . . . 1 amplify_resonance 66 | . . . . . . . . . 3 . 3 . 2 1 2 5 5 . 4 . 3 . 2 . 8 4 2 3 9 4 4 2 reboot_system 32 | . . . . . . . . . 1 . 4 . 2 . 2 . . . . 2 2 1 1 3 5 3 3 . . 1 2 . overwrite_iff 55 | . . . . . . . 1 . 4 . 1 . . . . . 4 . 2 4 5 . 3 1 3 2 5 4 3 5 6 2 streamctrl_high 3 | . . . . . . . . . . . . . . . . . . . . . 1 . . . . 2 . . . . . . formatsys_low 15 | . . . . . . . . . . 1 . . . 1 . 2 . 1 . 1 . . . 3 . 2 . 3 . 1 . . formatsys_high 72 | . . . . . . . . . 3 . 6 1 3 1 7 3 4 1 7 3 6 1 4 2 2 4 3 1 4 4 . 2 formatsys_deep 3 | . . . . . . . . . . . . . . . . . . . . . . 1 . . . . . . . 1 . 1 Relay Couplers Released 275 | . . . . . . . 21 . 18 . 16 . 18 . 22 3 23 3 16 4 19 . 17 . 22 . 23 . 22 3 20 5 Ejected 10 | . . . . . . . . . . . . . . . . . . 3 . 4 . . . . . . . . . 3 . . Machine Destruction 259 | . . . . . . . 18 . 18 . 16 . 18 . 22 3 23 . 16 . 19 . 17 . 22 . 20 . 22 . 20 5 Programmers 6 | . . . . . . . 3 . . . . . . . . . . . . . . . . . . . 3 . . . . . Attached 107 | . . . . . . . 1 1 7 2 7 . 3 4 9 5 9 2 3 3 9 . 9 2 7 4 6 1 6 2 4 1 Crosswired 10 | . . . . . . . . . . . . . . . . . . . . . . . . . . . . . . . 7 3 Merged Code Value 688 | . . . . . . . . . . . . . . . . . 37 14 59 8 33 . 55 . 66 . 97 . 147 20 122 30 Fabnet Peak Effective % . | . . . . . . . . . . . . . . . . . . . . . . . . . . . . . . . . . Robots Rewired 49 | . . . . . . . 5 1 . . . . 4 . 3 . . . . . 14 . 1 . 6 . . . . . 15 . Allies Hacked 9 | . . . . . . . . . 2 . . . . . . 1 1 . . 1 . . . . . . 1 3 . . . . Hacks Repelled . | . . . . . . . . . . . . . . . . . . . . . . . . . . . . . . . . . Allies | -11 -10 -10 -10 -9 -8 -8 -8 -7 -7 -7 -7 -6 -6 -6 -6 -5 -5 -5 -5 -4 -4 -4 -4 -3 -3 -3 -3 -2 -2 -1 -1 -1 -------- Run | Jun Mat Min Exi Min Mat Sto Gar Fac Gar Fac Gar Fac Gar Fac Gar Fac Gar Fac Gar Fac Gar Fac Gar Res Gar Res Gar Res Gar Acc Gar Acc Total Allies 293 | . . . . 2 1 10 6 1 9 2 10 1 9 2 12 5 10 2 10 8 30 5 8 6 12 12 11 11 12 17 39 30 Largest Group 15 | . . . . 2 1 10 8 3 2 2 5 5 6 5 10 10 5 1 5 4 10 4 3 6 4 3 5 5 6 3 15 12 Highest-Rated Group 977 | . . . . 45 31 173 141 60 56 52 232 264 420 236 401 401 239 49 135 143 503 191 233 378 150 137 282 282 365 229 977 777 Highest-Rated Ally 137 | . . . . 31 31 29 39 39 32 26 95 95 119 80 80 80 85 49 41 56 80 58 137 137 116 137 95 95 69 89 89 89 Total Orders 333 | . . . . . . . 2 . . 2 23 7 8 6 22 13 7 4 22 18 23 7 24 23 7 32 8 7 20 12 17 19 STAY 167 | . . . . . . . . . . 1 12 2 4 4 12 7 3 2 11 8 13 3 10 10 4 16 3 4 10 7 11 10 ROAM 3 | . . . . . . . 1 . . . . . . . . . . . 1 . . . . . 1 . . . . . . . FOLLOW 148 | . . . . . . . 1 . . 1 11 . 4 2 10 5 4 2 10 10 10 4 14 10 2 12 5 2 10 4 6 9 AID 9 | . . . . . . . . . . . . . . . . 1 . . . . . . . 3 . 3 . 1 . 1 . . DROP 1 | . . . . . . . . . . . . . . . . . . . . . . . . . . 1 . . . . . . EXPLORE 5 | . . . . . . . . . . . . 5 . . . . . . . . . . . . . . . . . . . . Ally Attacks 1421 | . . . . . 12 . 74 20 38 2 59 5 68 39 58 51 41 3 64 55 147 45 54 32 35 60 28 31 61 60 31 248 Total Damage 42862 | . . . . . 128 . 886 227 538 18 1178 221 2263 964 1817 2063 1282 148 1187 870 5531 1503 1783 1377 1117 2528 874 1137 2180 1653 1470 7919 Kills 250 | . . . . . 1 . 11 2 5 . 13 . 16 8 14 21 1 . 9 8 35 6 15 5 3 14 1 6 7 4 7 38 Allies Corrupted 15 | . . . . . . . . . . . . . . . . . . . . . . 1 . . . . 1 . . 4 . 9 Allies Melted 7 | . . . . . . . . . . . . . . . . . . . 1 . 2 . . 1 1 . . . 1 . 1 . Intel | -11 -10 -10 -10 -9 -8 -8 -8 -7 -7 -7 -7 -6 -6 -6 -6 -5 -5 -5 -5 -4 -4 -4 -4 -3 -3 -3 -3 -2 -2 -1 -1 -1 ------- Run | Jun Mat Min Exi Min Mat Sto Gar Fac Gar Fac Gar Fac Gar Fac Gar Fac Gar Fac Gar Fac Gar Fac Gar Res Gar Res Gar Res Gar Acc Gar Acc Robot Analysis Total 2 | . 1 . . . . 1 . . . . . . . . . . . . . . . . . . . . . . . . . . Derelict Logs Recovered 4 | . . 3 . 1 . . . . . . . . . . . . . . . . . . . . . . . . . . . . Drone Launches 4 | . . . . . . . . . . . . 4 . . . . . . . . . . . . . . . . . . . . Drone Recoveries 1 | . . . . . . . . . . . . 1 . . . . . . . . . . . . . . . . . . . . Exploration | -11 -10 -10 -10 -9 -8 -8 -8 -7 -7 -7 -7 -6 -6 -6 -6 -5 -5 -5 -5 -4 -4 -4 -4 -3 -3 -3 -3 -2 -2 -1 -1 -1 ------------- Run | Jun Mat Min Exi Min Mat Sto Gar Fac Gar Fac Gar Fac Gar Fac Gar Fac Gar Fac Gar Fac Gar Fac Gar Res Gar Res Gar Res Gar Acc Gar Acc Turns Passed 60232 | 119 2089 1526 818 629 3948 2760 1363 546 1329 1096 2387 349 1584 319 2493 1961 3250 231 1603 2298 2713 1272 2641 1189 2488 2750 1950 2039 2762 2636 4055 1039 Spaces Moved 28079 | 57 842 599 341 241 1633 1308 707 319 628 386 1082 191 803 158 1172 929 1359 125 792 1028 1355 563 1338 574 1242 1311 873 964 1471 1089 1877 722 Core 3 | 3 . . . . . . . . . . . . . . . . . . . . . . . . . . . . . . . . Treads 26800 | 54 842 599 341 241 1237 1308 707 319 628 386 1082 191 803 158 1172 929 1359 125 792 1028 1355 563 1338 574 1242 1311 873 964 1471 1089 1719 . Legs 641 | . . . . . . . . . . . . . . . . . . . . . . . . . . . . . . . 158 483 Wheels 396 | . . . . . 396 . . . . . . . . . . . . . . . . . . . . . . . . . . . Hover 206 | . . . . . . . . . . . . . . . . . . . . . . . . . . . . . . . . 206 Flight 33 | . . . . . . . . . . . . . . . . . . . . . . . . . . . . . . . . 33 Fastest Speed 40 | 50 160 240 240 240 115 160 152 152 150 240 162 165 165 165 165 165 160 160 160 160 155 155 150 150 150 150 155 155 155 145 111 40 Average Speed 165 | 154 199 240 240 240 156 164 156 152 169 240 192 165 165 165 177 165 190 160 160 160 159 155 152 152 152 153 160 155 157 156 146 97 Slowest Speed 246 | 160 240 240 240 240 243 240 160 152 242 242 242 165 244 165 246 165 245 160 160 160 240 155 155 155 156 160 166 155 161 161 236 152 Overloaded Moves . | . . . . . . . . . . . . . . . . . . . . . . . . . . . . . . . . . Propulsion Burnouts . | . . . . . . . . . . . . . . . . . . . . . . . . . . . . . . . . . Robots Hopped 4 | . . . . . . . . . . . . . . . . . . . . . . . . . . . . . . . . 4 Cave-ins Triggered 1 | . . . . . 1 . . . . . . . . . . . . . . . . . . . . . . . . . . . Exploration Rate (%) 61 | 5 96 97 69 53 96 97 90 12 80 12 95 13 90 5 99 35 93 6 85 31 99 20 97 17 97 40 93 42 99 26 99 29 Regions Visited 32 Branch Regions 4 Pre-discovered Areas 3 | . 2 . 1 . . . . . . . . . . . . . . . . . . . . . . . . . . . . . Known Exits Taken 15 | . . . . 1 1 1 . 1 . 1 . 1 . 1 . 1 . 1 . 1 . 1 . 1 . 1 . 1 . 1 . . Unknown Exits Taken 4 | 1 1 1 1 . . . . . . . . . . . . . . . . . . . . . . . . . . . . . Scrap Searched 4 | . . 2 . 2 . . . . . . . . . . . . . . . . . . . . . . . . . . . . Spaces Dug 533 | . . 13 . 22 51 29 5 3 4 . 9 1 10 . 21 30 45 . 18 33 33 13 30 10 29 24 . 15 . 34 27 24 Terrain Destroyed 1604 | . 28 58 . 22 208 38 5 4 14 14 10 1 14 . 50 55 116 . 34 86 83 83 130 23 114 48 18 38 20 82 98 110 Melee 224 | . . . . 1 8 1 . 3 1 . 8 1 8 . 13 27 21 . 10 29 5 11 1 10 1 24 . 11 . 28 2 . Projectile 480 | . . . . . . . . 1 13 14 2 . 6 . 15 28 43 . 24 23 7 12 20 13 19 24 18 27 20 54 77 20 AOE 900 | . 28 58 . 21 200 37 5 . . . . . . . 22 . 52 . . 34 71 60 109 . 94 . . . . . 19 90 Terrain Rammed . | . . . . . . . . . . . . . . . . . . . . . . . . . . . . . . . . . Walls Destroyed . | . . . . . . . . . . . . . . . . . . . . . . . . . . . . . . . . . Machines Disabled . | . . . . . . . . . . . . . . . . . . . . . . . . . . . . . . . . . Actions | -11 -10 -10 -10 -9 -8 -8 -8 -7 -7 -7 -7 -6 -6 -6 -6 -5 -5 -5 -5 -4 -4 -4 -4 -3 -3 -3 -3 -2 -2 -1 -1 -1 --------- Run | Jun Mat Min Exi Min Mat Sto Gar Fac Gar Fac Gar Fac Gar Fac Gar Fac Gar Fac Gar Fac Gar Fac Gar Res Gar Res Gar Res Gar Acc Gar Acc Total 38113 | 74 1166 647 342 275 2845 1801 869 364 814 509 1277 225 975 203 1454 1196 1751 155 1005 1446 1754 850 1755 805 1669 1817 1279 1381 1845 1730 2852 983 Wait 4241 | . 228 13 . 13 901 327 29 7 32 49 2 14 18 16 47 86 54 9 69 174 127 185 155 105 139 175 156 237 129 336 358 51 Move 28045 | 56 841 598 340 240 1631 1308 705 318 627 386 1081 190 802 158 1171 929 1358 124 791 1027 1354 563 1337 574 1241 1311 872 964 1470 1088 1876 714 Hop 4 | . . . . . . . . . . . . . . . . . . . . . . . . . . . . . . . . 4 Pick Up 552 | 4 21 4 1 1 52 12 8 4 15 6 24 3 15 . 34 10 37 1 13 16 21 1 25 8 26 23 36 11 37 14 58 11 Fast Attach 393 | 7 3 . . . 22 23 . 3 13 3 11 4 6 1 10 8 17 1 2 13 29 14 22 8 21 32 19 6 11 16 43 25 Attach 241 | . 3 2 . . 20 7 6 2 11 9 15 3 3 2 11 10 12 2 3 8 10 1 15 2 8 3 7 6 11 8 18 23 Detach 194 | . 2 . . . 10 4 . . 9 4 7 2 4 1 9 4 9 2 3 6 12 2 15 . 12 8 7 2 15 2 29 14 Swap 648 | . 7 4 . 7 42 19 8 11 11 3 12 . 18 6 39 25 24 5 10 33 26 7 30 20 31 52 37 34 44 35 33 15 Drop 712 | . 9 2 1 1 46 32 7 7 20 8 28 5 16 . 35 11 46 1 11 20 38 8 39 15 32 50 45 9 35 25 79 31 Fire 2082 | 7 52 18 . 9 90 46 55 9 61 39 31 2 44 18 59 69 101 10 83 91 109 42 88 53 124 109 86 88 85 158 159 87 Melee 675 | . . . . 1 22 15 3 3 12 . 64 1 24 . 30 37 81 . 20 57 27 23 28 19 35 51 14 23 7 44 34 . Ram 5 | . . . . . . . . . . . . . . . . . . . . . . . . . . . . . . . . 5 Kick 3 | . . . . . . . . . . . . . . . . . . . . . . . . . . . . . . . . 3 Crush 47 | . . 6 . 3 8 6 . . . 2 . . . 1 . 7 . . . 1 . 4 . 1 . 3 . 1 . 4 . . Escape Stasis 22 | . . . . . 1 . 5 . 3 . 2 . . . 2 . 8 . . . 1 . . . . . . . . . . . Rewire 244 | . . . . . . 2 43 . . . . . 25 . 7 . . . . . . . 1 . . . . . 1 . 165 . Trap 4 | . . . . . . . . . . . . . . . . . 4 . . . . . . . . . . . . . . . Miscellaneous 1 | . . . . . . . . . . . . 1 . . . . . . . . . . . . . . . . . . . . Route ------- -11/Junkyard -10/Materials (discovered 5 exits: [*Mat x3] / [*Min x2]) -10/Mines (discovered 3 exits: [*Mat x2] / *Exi) -10/Exiles -9/Mines (discovered 2 exits: *Mat x2) -8/Materials (discovered 4 exits: *Fac x3 / *Sto) -8/Storage (discovered 2 exits: *Fac / Gar) -8/Garrison (discovered 3 exits: *Fac x3) -7/Factory -7/Garrison (discovered 3 exits: *Fac x3) -7/Factory -7/Garrison (discovered 3 exits: *Fac x3) -6/Factory -6/Garrison (discovered 3 exits: *Fac x3) -6/Factory -6/Garrison (discovered 3 exits: *Fac x3) -5/Factory (discovered 3 exits: *Fac / [*Upp] / Gar) -5/Garrison (discovered 4 exits: *Fac x4) -5/Factory (discovered 2 exits: *Fac / Gar) -5/Garrison (discovered 3 exits: *Fac x3) -4/Factory (discovered 4 exits: *Res / Upp x2 / Gar) -4/Garrison (discovered 4 exits: *Res x3 / *Fac) -4/Factory -4/Garrison (discovered 3 exits: *Res x3) -3/Research (discovered 2 exits: *Res / Gar) -3/Garrison (discovered 3 exits: *Res x3) -3/Research (discovered 4 exits: *Res / [*Arm] / [Tes] / Gar) -3/Garrison (discovered 3 exits: *Res x3) -2/Research (discovered 2 exits: *Acc / Gar) -2/Garrison (discovered 3 exits: *Acc x3) -1/Access (discovered 2 exits: Gar / Gar) -1/Garrison (discovered 3 exits: [*Acc x3]) -1/Access History --------- Turn | Location | Event 9 | -11/Junkyard | Discovered new exit (range 15) 120 | -11/Junkyard | Entered Materials 303 | -10/Materials | Build established: Mutant 325 | -10/Materials | Discovered new exit (range 15) 619 | -10/Materials | Destroyed 8 combat bots 637 | -10/Materials | Discovered new exit (range 10) 882 | -10/Materials | Discovered new exit (range 5) 1015 | -10/Materials | Central database locked down 1307 | -10/Materials | Core integrity fell below 50% 1352 | -10/Materials | Discovered new exit (range 7) 1493 | -10/Materials | Discovered new exit (range 7) 1951 | -10/Materials | Repaired Lgt. Treads 2209 | -10/Materials | Entered Mines 2295 | -10/Mines | Learned Materials stockpile data 2544 | -10/Mines | Learned Materials garrison access intel 2552 | -10/Mines | Assembled infested the area 2557 | -10/Mines | Assisted by a Guerilla fighting off Assembled 2814 | -10/Mines | Learned Materials terminal intel 2859 | -10/Mines | Discovered new exit (range 8) 3088 | -10/Mines | Discovered new exit (range 12) 3149 | -10/Mines | Core integrity fell below 20% 3270 | -10/Mines | Deemed a non-threat by the Exiles lab entrance 3270 | -10/Mines | Discovered new exit (range 5) 3325 | -10/Mines | Found a hidden stash of uninstalled traps 3735 | -10/Mines | Entered Exiles 3795 | -10/Exiles | Met 8R-AWN 3831 | -10/Exiles | Met EX-HEX 3966 | -10/Exiles | Met EX-DEC 4028 | -10/Exiles | Learned location of Zion (-6) 4211 | -10/Exiles | Met EX-BIN 4239 | -10/Exiles | Aligned with FarCom system 4242 | -10/Exiles | Given EX-Vault access code 4299 | -10/Exiles | Opened EX-Vault 4319 | -10/Exiles | Found Superbattery 4373 | -10/Exiles | Warned to stay clear of 0b10 Research branches 4522 | -10/Exiles | Discovered new exit (range 14) 4553 | -10/Exiles | Left Exiles lab with Superbattery 4553 | -10/Exiles | Entered Mines 4571 | -9/Mines | Identified exit to Materials 4583 | -9/Mines | Met a Derelict bent on vengeance 5102 | -9/Mines | Discovered exit to Materials (range 14) 5182 | -9/Mines | Entered Materials 5182 | -8/Materials | Accompanied by 1 ally 5182 | -8/Materials | Evolved 4 slots: Propulsion x2, Utility x2 5184 | -8/Materials | Loaded intel: 10 terminal locations 5187 | -8/Materials | Led the pair of lost Derelicts to an unsafe place 5504 | -8/Materials | Destroyed 9 combat bots 5661 | -8/Materials | Discovered new exit (range 9) 5779 | -8/Materials | Discovered new exit (range 5) 6031 | -8/Materials | Repaired Lgt. Treads 6071 | -8/Materials | Repaired Arm. Treads 6334 | -8/Materials | Build established: Scavenger-Mutant 6826 | -8/Materials | Discovered new exit (range 5) 7063 | -8/Materials | Discovered new exit (range 4) 7540 | -8/Materials | Lost 11 parts (4n5u2w) 7582 | -8/Materials | First assault squad dispatched 7718 | -8/Materials | Crushed by falling debris 7792 | -8/Materials | Build established: Mutant 7917 | -8/Materials | Repaired Arm. Treads 8205 | -8/Materials | Identified exit to Storage 9130 | -8/Materials | Entered Storage 10068 | -8/Storage | Core integrity fell below 50% 11158 | -8/Storage | Lost 3 parts (2n1w) 11268 | -8/Storage | Discovered new exit (range 6) 11752 | -8/Storage | Assisted by bots powering up and referring to "LRC-V3" 11870 | -8/Storage | Identified exit to Garrison 11890 | -8/Storage | Entered Garrison 11890 | -8/Garrison | Accompanied by 8 allies 11930 | -8/Garrison | Triggered checkpoint 11990 | -8/Garrison | Garrison Relay disabled 12023 | -8/Garrison | Build established: Commander-Mutant 12048 | -8/Garrison | Triggered checkpoint 12086 | -8/Garrison | Triggered checkpoint 12120 | -8/Garrison | Triggered checkpoint 12163 | -8/Garrison | Discovered new exit (range 15) 12220 | -8/Garrison | Triggered checkpoint 12333 | -8/Garrison | Garrison Relay disabled 12361 | -8/Garrison | Build established: Mutant 12450 | -8/Garrison | Installed Relay Interface Framework 12538 | -8/Garrison | Discovered new exit (range 5) 12558 | -8/Garrison | Triggered checkpoint 12680 | -8/Garrison | Triggered checkpoint 12713 | -8/Garrison | Garrison Relay disabled 12840 | -8/Garrison | Discovered new exit (range 10) 12876 | -8/Garrison | Triggered checkpoint 12899 | -8/Garrison | Garrison Relay disabled 13253 | -8/Garrison | Entered Factory 13253 | -7/Factory | Accompanied by 2 allies 13253 | -7/Factory | Evolved 2 slots: Utility x2 13590 | -7/Factory | P-60 Hacker assimilated allied 1L-2DF(h) 13762 | -7/Factory | Garrison activated, responded to threat 13784 | -7/Factory | Identified exit to Garrison 13799 | -7/Factory | Entered Garrison 13799 | -7/Garrison | Accompanied by 1 ally 13837 | -7/Garrison | Discovered new exit (range 71) 13837 | -7/Garrison | Discovered new exit (range 33) 13837 | -7/Garrison | Discovered new exit (range 58) 13861 | -7/Garrison | Garrison Relay disabled 13928 | -7/Garrison | Triggered checkpoint 13954 | -7/Garrison | Garrison Relay disabled 14096 | -7/Garrison | Triggered checkpoint 14123 | -7/Garrison | Lost 3 parts (1p1n1u) 14229 | -7/Garrison | Garrison Relay disabled 14261 | -7/Garrison | Build established: Bothacker-Mutant 14264 | -7/Garrison | Triggered checkpoint 14369 | -7/Garrison | Expanded RIF knowledge: Alert ID Control 14452 | -7/Garrison | Triggered checkpoint 14513 | -7/Garrison | Garrison Relay disabled 14514 | -7/Garrison | Triggered checkpoint 14619 | -7/Garrison | Triggered checkpoint 14683 | -7/Garrison | Rescued a captive Derelict 14684 | -7/Garrison | Rescued a captive Derelict 14858 | -7/Garrison | Triggered checkpoint 14876 | -7/Garrison | Garrison Relay disabled 15128 | -7/Garrison | Entered Factory 15128 | -7/Factory | Accompanied by 2 allies 15338 | -7/Factory | P-60 Hacker assimilated allied QH-2X6(l) 15430 | -7/Factory | Repaired Arm. Treads 15989 | -7/Factory | Fabricated O-24 Administrator? 16224 | -7/Factory | Identified exit to Garrison 16224 | -7/Factory | Entered Garrison 16224 | -7/Garrison | Accompanied by 1 ally 16419 | -7/Garrison | Garrison Relay disabled 16450 | -7/Garrison | Learned Factory security intel 16564 | -7/Garrison | Triggered checkpoint 16584 | -7/Garrison | Triggered checkpoint 16621 | -7/Garrison | Triggered checkpoint 16646 | -7/Garrison | Triggered checkpoint 16874 | -7/Garrison | Triggered checkpoint 16923 | -7/Garrison | Garrison Relay disabled 17014 | -7/Garrison | Discovered new exit (range 11) 17019 | -7/Garrison | Found embedded Infiltrators 17210 | -7/Garrison | Triggered checkpoint 17250 | -7/Garrison | Expanded RIF knowledge: Threat Obfuscation 17349 | -7/Garrison | Rescued a captive Derelict 17394 | -7/Garrison | Garrison Relay disabled 17500 | -7/Garrison | Discovered new exit (range 13) 17694 | -7/Garrison | Discovered new exit (range 10) 17795 | -7/Garrison | Garrison Relay disabled 18010 | -7/Garrison | Triggered checkpoint 18611 | -7/Garrison | Entered Factory 18611 | -6/Factory | Accompanied by 4 allies 18611 | -6/Factory | Evolved 2 slots: Propulsion x2 18771 | -6/Factory | Identified exit to Garrison 18960 | -6/Factory | Entered Garrison 18960 | -6/Garrison | Accompanied by 4 allies 19002 | -6/Garrison | Triggered checkpoint 19099 | -6/Garrison | Garrison Relay disabled 19176 | -6/Garrison | Triggered checkpoint 19179 | -6/Garrison | Triggered checkpoint 19198 | -6/Garrison | Triggered checkpoint 19252 | -6/Garrison | P-60 Hacker assimilated allied Soldier 5a 19309 | -6/Garrison | Expanded RIF knowledge: Robot Detection 19344 | -6/Garrison | Discovered new exit (range 10) 19410 | -6/Garrison | Triggered checkpoint 19438 | -6/Garrison | Garrison Relay disabled 19613 | -6/Garrison | Garrison Relay disabled 19628 | -6/Garrison | Triggered checkpoint 19653 | -6/Garrison | Discovered new exit (range 11) 19687 | -6/Garrison | Rewired Executioner 19692 | -6/Garrison | Rewired Executioner 19737 | -6/Garrison | Build established: Botlord-Mutant 20038 | -6/Garrison | Discovered new exit (range 15) 20132 | -6/Garrison | Found embedded Infiltrators 20159 | -6/Garrison | Garrison Relay disabled 20182 | -6/Garrison | Triggered checkpoint 20401 | -6/Garrison | Destroyed Executioner 20429 | -6/Garrison | Destroyed Executioner 20436 | -6/Garrison | Found Exp. Core Analyzer 20452 | -6/Garrison | Found Adv. Kinecellerator 20544 | -6/Garrison | Entered Factory 20544 | -6/Factory | Accompanied by 3 allies 20863 | -6/Factory | Identified exit to Garrison 20863 | -6/Factory | Entered Garrison 20863 | -6/Garrison | Accompanied by 5 allies 20896 | -6/Garrison | Triggered checkpoint 20965 | -6/Garrison | Garrison Relay disabled 21034 | -6/Garrison | Build established: Bothacker-Mutant 21064 | -6/Garrison | Triggered checkpoint 21065 | -6/Garrison | Triggered checkpoint 21065 | -6/Garrison | Triggered checkpoint 21107 | -6/Garrison | Triggered checkpoint 21146 | -6/Garrison | Destroyed 7 combat bots 21198 | -6/Garrison | Discovered new exit (range 8) 21834 | -6/Garrison | Garrison Relay disabled 21971 | -6/Garrison | Build established: Botlord-Mutant 22216 | -6/Garrison | Spotted B-75 Beast 22232 | -6/Garrison | Allies destroyed B-75 Beast 22239 | -6/Garrison | Garrison Relay disabled 22257 | -6/Garrison | Expanded RIF knowledge: Threat Obfuscation 22330 | -6/Garrison | Triggered checkpoint 22343 | -6/Garrison | Garrison Relay disabled 22384 | -6/Garrison | Discovered new exit (range 5) 22528 | -6/Garrison | Triggered checkpoint 22546 | -6/Garrison | Found embedded Infiltrators 22639 | -6/Garrison | Discovered new exit (range 5) 22698 | -6/Garrison | Garrison Relay disabled 22709 | -6/Garrison | Spotted B-75 Beast 22717 | -6/Garrison | Destroyed B-75 Beast 22754 | -6/Garrison | Found Enh. Force Lance 22794 | -6/Garrison | Found Unknown Protection 22794 | -6/Garrison | Identified Adv. Powered Armor 22818 | -6/Garrison | Found Antimissile System 22824 | -6/Garrison | Found Fusion Bomb Launcher 23092 | -6/Garrison | Build established: Bothacker-Mutant 23356 | -6/Garrison | Entered Factory 23356 | -5/Factory | Accompanied by 10 allies 23356 | -5/Factory | Evolved 2 slots: Utility x1, Weapon x1 23542 | -5/Factory | Build established: Botlord-Mutant 23812 | -5/Factory | Repaired Arm. Treads 24547 | -5/Factory | Discovered new exit (range 5) 24592 | -5/Factory | Build established: Bothacker-Mutant 24753 | -5/Factory | Discovered new exit (range 4) 25317 | -5/Factory | Identified exit to Garrison 25317 | -5/Factory | Entered Garrison 25420 | -5/Garrison | Expanded RIF knowledge: Code Merge 25542 | -5/Garrison | Garrison Relay disabled 25651 | -5/Garrison | Garrison Relay disabled 25898 | -5/Garrison | Triggered checkpoint 25927 | -5/Garrison | Spotted B-75 Beast 25927 | -5/Garrison | Spotted B-75 Beast 25998 | -5/Garrison | Destroyed B-75 Beast 26118 | -5/Garrison | Triggered checkpoint 26122 | -5/Garrison | Triggered checkpoint 26212 | -5/Garrison | Triggered checkpoint 26232 | -5/Garrison | Garrison Relay disabled 26295 | -5/Garrison | Discovered new exit (range 9) 26779 | -5/Garrison | Triggered checkpoint 26785 | -5/Garrison | Triggered checkpoint 27049 | -5/Garrison | Garrison Relay disabled 27052 | -5/Garrison | Triggered checkpoint 27171 | -5/Garrison | Discovered new exit (range 10) 27200 | -5/Garrison | Triggered checkpoint 27345 | -5/Garrison | Build established: Botlord-Mutant 27359 | -5/Garrison | Garrison Relay disabled 27559 | -5/Garrison | Rescued a captive Derelict 27560 | -5/Garrison | Rescued a captive Derelict 27593 | -5/Garrison | Spotted Striker 27593 | -5/Garrison | Spotted Striker 27609 | -5/Garrison | Discovered new exit (range 9) 27682 | -5/Garrison | Triggered checkpoint 27698 | -5/Garrison | Discovered new exit (range 5) 27796 | -5/Garrison | Triggered checkpoint 27844 | -5/Garrison | Build established: Bothacker-Mutant 27849 | -5/Garrison | Garrison Relay disabled 28159 | -5/Garrison | Build established: Botlord-Mutant 28567 | -5/Garrison | Entered Factory 28567 | -5/Factory | Accompanied by 1 ally 28618 | -5/Factory | Discovered new exit (range 6) 28779 | -5/Factory | Identified exit to Garrison 28798 | -5/Factory | Entered Garrison 28798 | -5/Garrison | Accompanied by 1 ally 28829 | -5/Garrison | Triggered checkpoint 28897 | -5/Garrison | Garrison Relay disabled 28915 | -5/Garrison | Discovered new exit (range 62) 28915 | -5/Garrison | Discovered new exit (range 80) 28915 | -5/Garrison | Discovered new exit (range 23) 29010 | -5/Garrison | Triggered checkpoint 29032 | -5/Garrison | Triggered checkpoint 29036 | -5/Garrison | Spotted B-75 Beast 29056 | -5/Garrison | Triggered checkpoint 29067 | -5/Garrison | Destroyed B-75 Beast 29476 | -5/Garrison | Triggered checkpoint 29498 | -5/Garrison | Garrison Relay disabled 29640 | -5/Garrison | Garrison Relay disabled 29710 | -5/Garrison | Garrison Relay disabled 29748 | -5/Garrison | Expanded RIF knowledge: Signal Jamming 29796 | -5/Garrison | Triggered checkpoint 29977 | -5/Garrison | Rescued a captive Derelict 30144 | -5/Garrison | Triggered checkpoint 30178 | -5/Garrison | Garrison Relay disabled 30401 | -5/Garrison | Entered Factory 30401 | -4/Factory | Accompanied by 4 allies 30401 | -4/Factory | Evolved 2 slots: Power x1, Utility x1 31284 | -4/Factory | Identified exit to Upper Caves 31375 | -4/Factory | Spotted B-86 Titan 31788 | -4/Factory | Found Unknown Protection 31788 | -4/Factory | Identified Hvy. Reflective Plating 31955 | -4/Factory | Discovered new exit (range 3) 31979 | -4/Factory | Repaired Adv. Remote Datajack? 32686 | -4/Factory | Identified exit to Garrison 32699 | -4/Factory | Entered Garrison 32940 | -4/Garrison | Triggered checkpoint 32951 | -4/Garrison | Destroyed 7 combat bots 32977 | -4/Garrison | Garrison Relay disabled 33150 | -4/Garrison | Triggered checkpoint 33150 | -4/Garrison | Spotted B-86 Titan 33162 | -4/Garrison | Triggered checkpoint 33168 | -4/Garrison | Triggered checkpoint 33183 | -4/Garrison | Destroyed B-86 Titan 33192 | -4/Garrison | Triggered checkpoint 33332 | -4/Garrison | Discovered new exit (range 10) 33406 | -4/Garrison | Expanded RIF knowledge: Structural Interface 33533 | -4/Garrison | Found embedded Infiltrators 33550 | -4/Garrison | Triggered checkpoint 33588 | -4/Garrison | Triggered checkpoint 33605 | -4/Garrison | Garrison Relay disabled 33766 | -4/Garrison | Triggered checkpoint 33801 | -4/Garrison | Garrison Relay disabled 33938 | -4/Garrison | Triggered checkpoint 34015 | -4/Garrison | Discovered new exit (range 3) 34095 | -4/Garrison | Garrison Relay disabled 34110 | -4/Garrison | Triggered checkpoint 34156 | -4/Garrison | Expanded RIF knowledge: Autooverride 34240 | -4/Garrison | Discovered new exit (range 2) 34251 | -4/Garrison | Spotted Executioner 34251 | -4/Garrison | Spotted Executioner 34306 | -4/Garrison | Allies destroyed Executioner 34312 | -4/Garrison | Allies destroyed Executioner 34351 | -4/Garrison | Found Adv. Kinecellerator 34584 | -4/Garrison | Garrison Relay disabled 34588 | -4/Garrison | Triggered checkpoint 34685 | -4/Garrison | Discovered new exit (range 12) 34718 | -4/Garrison | Rescued a captive Derelict 35412 | -4/Garrison | Entered Factory 35412 | -4/Factory | Accompanied by 3 allies 36450 | -4/Factory | First assault squad dispatched 36528 | -4/Factory | Assimilated ARC 7a with formatsys_deep 36655 | -4/Factory | System corruption reached 10% 36684 | -4/Factory | Identified exit to Garrison 36684 | -4/Factory | Entered Garrison 36790 | -4/Garrison | Triggered checkpoint 36834 | -4/Garrison | Garrison Relay disabled 36994 | -4/Garrison | Rewired B-86 Titan 37006 | -4/Garrison | Heavy support dispatched to Research 37125 | -4/Garrison | Spotted B-86 Titan 37132 | -4/Garrison | Assimilated Titan 7b with formatsys_high 37134 | -4/Garrison | Triggered checkpoint 37147 | -4/Garrison | Triggered checkpoint 37181 | -4/Garrison | Triggered checkpoint 37208 | -4/Garrison | Found Hvy. Reflective Plating 37211 | -4/Garrison | Destroyed 8 combat bots 37431 | -4/Garrison | Discovered new exit (range 13) 37722 | -4/Garrison | Triggered checkpoint 37727 | -4/Garrison | Garrison Relay disabled 37919 | -4/Garrison | Spotted B-86 Titan 37990 | -4/Garrison | Destroyed B-86 Titan 38068 | -4/Garrison | Discovered new exit (range 13) 38158 | -4/Garrison | Triggered checkpoint 38186 | -4/Garrison | Expanded RIF knowledge: Program Shield 38223 | -4/Garrison | Garrison Relay disabled 38266 | -4/Garrison | Heavy support dispatched to Research 38314 | -4/Garrison | Triggered checkpoint 38485 | -4/Garrison | Heavy support dispatched to Research 38532 | -4/Garrison | Discovered new exit (range 11) 38550 | -4/Garrison | H-XX Assembler disabled 38690 | -4/Garrison | Triggered checkpoint 38709 | -4/Garrison | Garrison Relay disabled 39325 | -4/Garrison | Entered Research 39325 | -3/Research | Accompanied by 3 allies 39325 | -3/Research | Evolved 2 slots: Propulsion x2 40055 | -3/Research | Discovered new exit (range 8) 40325 | -3/Research | First assault squad dispatched 40514 | -3/Research | Identified exit to Garrison 40514 | -3/Research | Entered Garrison 40724 | -3/Garrison | Triggered checkpoint 40844 | -3/Garrison | Garrison Relay disabled 40860 | -3/Garrison | Garrison Relay disabled 40988 | -3/Garrison | Spotted B-86 Titan 40994 | -3/Garrison | Assimilated Titan 8a with formatsys_high 41348 | -3/Garrison | Triggered checkpoint 41348 | -3/Garrison | Spotted B-86 Titan 41376 | -3/Garrison | Destroyed B-86 Titan 41430 | -3/Garrison | Triggered checkpoint 41443 | -3/Garrison | Garrison Relay disabled 41508 | -3/Garrison | Spotted B-86 Titan 41559 | -3/Garrison | Discovered new exit (range 12) 41584 | -3/Garrison | Expanded RIF knowledge: Hotswap 41652 | -3/Garrison | Triggered checkpoint 41677 | -3/Garrison | Triggered checkpoint 41764 | -3/Garrison | Triggered checkpoint 41772 | -3/Garrison | Garrison Relay disabled 41876 | -3/Garrison | Triggered checkpoint 41918 | -3/Garrison | Discovered new exit (range 11) 41973 | -3/Garrison | System corruption reached 10% 42017 | -3/Garrison | Destroyed 12 combat bots 42249 | -3/Garrison | Discovered new exit (range 12) 42258 | -3/Garrison | Garrison Relay disabled 42352 | -3/Garrison | Triggered checkpoint 42382 | -3/Garrison | Garrison Relay disabled 43002 | -3/Garrison | Entered Research 43002 | -3/Research | Accompanied by 1 ally 43374 | -3/Research | Discovered new exit (range 8) 43542 | -3/Research | Discovered new exit (range 18) 44458 | -3/Research | Discovered new exit (range 93) 44552 | -3/Research | First assault squad dispatched 45148 | -3/Research | Found Prototype Slashing Weapon 45148 | -3/Research | Identified Centrium Greatsword 45646 | -3/Research | Found Enh. Force Lance 45686 | -3/Research | Found Prototype Protection 45686 | -3/Research | Identified Centrium Heavy Armor Plating 45750 | -3/Research | Identified exit to Garrison 45752 | -3/Research | Entered Garrison 45752 | -3/Garrison | Accompanied by 1 ally 45946 | -3/Garrison | Triggered checkpoint 45951 | -3/Garrison | Garrison Relay disabled 45975 | -3/Garrison | Spotted B-86 Titan 46078 | -3/Garrison | Destroyed B-86 Titan 46232 | -3/Garrison | Triggered checkpoint 46233 | -3/Garrison | Spotted B-86 Titan 46246 | -3/Garrison | Triggered checkpoint 46284 | -3/Garrison | Destroyed B-86 Titan 46337 | -3/Garrison | Discovered new exit (range 11) 46443 | -3/Garrison | Discovered new exit (range 59) 46443 | -3/Garrison | Discovered new exit (range 24) 46443 | -3/Garrison | Discovered new exit (range 16) 46525 | -3/Garrison | Garrison Relay disabled 46601 | -3/Garrison | Rescued a captive Derelict 46602 | -3/Garrison | Rescued a captive Derelict 46746 | -3/Garrison | P-80 Master assimilated allied AU-8FC(g) 46797 | -3/Garrison | Garrison Relay disabled 46817 | -3/Garrison | Triggered checkpoint 46853 | -3/Garrison | Expanded RIF knowledge: Watcher Feeds 46952 | -3/Garrison | Triggered checkpoint 47050 | -3/Garrison | Triggered checkpoint 47104 | -3/Garrison | Garrison Relay disabled 47162 | -3/Garrison | Found embedded Infiltrators 47179 | -3/Garrison | Garrison Relay disabled 47702 | -3/Garrison | Entered Research 47702 | -2/Research | Accompanied by 5 allies 47702 | -2/Research | Evolved 2 slots: Utility x2 47952 | -2/Research | First assault squad dispatched 48663 | -2/Research | Discovered new exit (range 6) 49241 | -2/Research | Fabricated Cmb. Antigrav System (x2) 49403 | -2/Research | Fabricated Cmb. Antigrav System? 49458 | -2/Research | Fabricated Cmb. Antigrav System (x2) 49741 | -2/Research | Identified exit to Garrison 49741 | -2/Research | Entered Garrison 49776 | -2/Garrison | Garrison Relay disabled 49788 | -2/Garrison | Triggered checkpoint 49929 | -2/Garrison | Spotted B-90 Cyclops 50004 | -2/Garrison | Destroyed B-90 Cyclops 50114 | -2/Garrison | Garrison Relay disabled 50134 | -2/Garrison | Triggered checkpoint 50234 | -2/Garrison | Expanded RIF knowledge: Autooverride 50279 | -2/Garrison | Discovered new exit (range 10) 50528 | -2/Garrison | Triggered checkpoint 50534 | -2/Garrison | Garrison Relay disabled 50662 | -2/Garrison | Garrison Relay disabled 50675 | -2/Garrison | Triggered checkpoint 50751 | -2/Garrison | Discovered new exit (range 14) 50782 | -2/Garrison | Spotted B-90 Cyclops 50782 | -2/Garrison | Spotted B-90 Cyclops 50867 | -2/Garrison | Triggered checkpoint 51026 | -2/Garrison | Discovered new exit (range 15) 51078 | -2/Garrison | Rescued a captive Derelict 51160 | -2/Garrison | Garrison Relay disabled 51279 | -2/Garrison | Found Unknown Device 51279 | -2/Garrison | Identified Adv. Force Booster 51595 | -2/Garrison | Destroyed B-90 Cyclops 52503 | -2/Garrison | Entered Access 52503 | -1/Access | Evolved 2 slots: Utility x1, Weapon x1 52862 | -1/Access | Found Exp. Hacking Suite 53046 | -1/Access | First assault squad dispatched 53139 | -1/Access | Identified exit to Garrison 53267 | -1/Access | Assimilated ARC 10a with formatsys_deep 53309 | -1/Access | Garrison activated, responded to threat 54262 | -1/Access | Found Vortex Chain Reactor 54347 | -1/Access | Found Vortex Chain Reactor 54532 | -1/Access | Spotted B-99 Colossus 54722 | -1/Access | Found Unknown Launcher 54722 | -1/Access | Identified Gamma Bomb Array 54768 | -1/Access | System corruption reached 10% 55135 | -1/Access | Identified exit to Garrison 55139 | -1/Access | Entered Garrison 55198 | -1/Garrison | Triggered checkpoint 55226 | -1/Garrison | Garrison Relay disabled 55422 | -1/Garrison | Q-Series assembled to engage unique threat in Access 55451 | -1/Garrison | Spotted B-99 Colossus 55456 | -1/Garrison | Triggered checkpoint 55470 | -1/Garrison | Triggered checkpoint 55563 | -1/Garrison | Q-Series assembled to engage unique threat in Access 55580 | -1/Garrison | Destroyed 7 combat bots 55850 | -1/Garrison | Build established: Scavenger-Mutant 56086 | -1/Garrison | Destroyed B-99 Colossus 56156 | -1/Garrison | Triggered checkpoint 56232 | -1/Garrison | Discovered new exit (range 14) 56371 | -1/Garrison | Garrison Relay disabled 56400 | -1/Garrison | Triggered checkpoint 56432 | -1/Garrison | Expanded RIF knowledge: Crosswire 56550 | -1/Garrison | Discovered new exit (range 15) 56626 | -1/Garrison | Triggered checkpoint 56689 | -1/Garrison | Garrison Relay disabled 56780 | -1/Garrison | Triggered checkpoint 56972 | -1/Garrison | Garrison Relay disabled 57174 | -1/Garrison | Triggered checkpoint 57205 | -1/Garrison | Discovered new exit (range 6) 57246 | -1/Garrison | Garrison Relay disabled 57366 | -1/Garrison | Q-Series assembled to engage unique threat in Access 57641 | -1/Garrison | QS Assembler disabled 57653 | -1/Garrison | Found Prototype Launcher 57653 | -1/Garrison | Identified Gui. Micro-nuke Launcher 57680 | -1/Garrison | Found Prototype Device 57680 | -1/Garrison | Identified Exp. Force Field 58474 | -1/Garrison | Found Antimissile System 58540 | -1/Garrison | Build established: Commander-Mutant 59194 | -1/Garrison | Entered Access 59194 | -1/Access | Accompanied by 12 allies 59316 | -1/Access | Build established: Scavenger-Mutant 59363 | -1/Access | Found Prototype Launcher 59363 | -1/Access | Identified Ragnarok Missile Launcher 59444 | -1/Access | First assault squad dispatched 59474 | -1/Access | P-80 Master assimilated allied Imp 10a 59662 | -1/Access | Energy Cycler disabled 59667 | -1/Access | High security lockdown imminent 59675 | -1/Access | Found Exp. EM Disruption Field 59712 | -1/Access | Assimilated ARC 10b with formatsys_deep 59738 | -1/Access | Spotted Striker 59738 | -1/Access | Spotted Striker 59747 | -1/Access | High security lockdown engaged 59995 | -1/Access | Build established: Botlord-Mutant 60009 | -1/Access | Spotted Investigator 60058 | -1/Access | Scanned by Researcher 60075 | -1/Access | Destroyed Investigator 60104 | -1/Access | Spotted Striker 60114 | -1/Access | Found Gui. Micro-nuke Launcher 60118 | -1/Access | Spotted Executioner 60118 | -1/Access | Spotted Striker 60118 | -1/Access | Spotted Striker 60118 | -1/Access | Spotted Striker 60140 | -1/Access | Destroyed Striker 60144 | -1/Access | Destroyed Striker 60149 | -1/Access | Destroyed Striker 60156 | -1/Access | Spotted Striker 60175 | -1/Access | Destroyed 11 combat bots 60191 | -1/Access | Core integrity fell below 50% 60214 | -1/Access | Released all parts (11) 60224 | -1/Access | Spotted Executioner 60224 | -1/Access | Spotted Executioner 60226 | -1/Access | Spotted Executioner 60226 | -1/Access | Spotted Striker 60228 | -1/Access | Spotted Executioner 60230 | -1/Access | Spotted Executioner 60230 | -1/Access | Spotted Striker 60230 | -1/Access | Spotted Striker 60232 | -1/Access | Core integrity fell below 20% 60233 | -1/Access | Destroyed by Executioner with Helical Railgun Last Messages --------------- 60230_ E-15 Imp unfolds itself. 60230_ Field Propulsion Array destroyed. 60230_ Slug penetrates Wall. 60230_ Slammed into Executioner. 60231_ Acquired 1 matter. 60231_ Penetrated by Slug. 60231_ Slug penetrates Wall. 60231_ Slug penetrates Executioner. 60231_ Penetrated by Slug. 60231_ Slug penetrates Striker. 60231_ Penetrated by Slug. 60231_ Slug penetrates E-15 Imp. 60231_ E-15 Imp destroyed. 60231_ Slammed into Executioner. 60231_ Penetrated by Slug. 60231_ Slug penetrates Executioner. 60231_ Penetrated by Slug. 60232_ Slammed into Executioner. 60232_ P-80 Master resets Striker, system corruption cleaned. 60233_ Slammed into Executioner. Map ----- +----------------------------------------------------+ | ?????????????????????????????????????????????????? | | ?????????????????????????????????????????????????? | | ?????????????????????????????????????????????????? | | ########## ####????????????????????????????????? | | "???????????????????????????????? | | "???????????????????????????????? | | "???????????????????????????????? | | ######+###########???????????????????????????????? | | ?????????????????????????????????????????????????? | | ?????????????????????????????????????????????????? | | ?????????????????????????????????????????????????? | | ?????????????????????????????????????????????????? | | ?????????????????????????????????????????????????? | | ????????????????????BB???????????????????????????? | | ????????????????????BB???????????????????????????? | | ??????=??????????????????????????????????????????? | | ?????????????????????????????????????????????????? | | ######???????????????????????????????????????????? | | === #???????????########????######## ??????????? | | #### #?????????? #??? ??????????? | | ???# #????????? #??? ??????????? | | #### #????????"""""" #?? Y ????????????? | | # #??????? """"""" #?? ""G"???????????? | | # #????????? #? " " ??????????? | | =# #???????????? % E##E= Y YY ????????? | | # ################//#K@%i * ????????? | | # h p p E%p% ????????? | | # EKhK K ????????? | | # #############;#+###pip ?????????? | | # #?????????? ??# ######## ###?????????? | | # #????????? ?# E #????????????????????? | | # #????????""" # #????????????????????? | | #### #???????"""" # #????????????????????? | | ???# #??????""""" # #????????????????????? | | ???# #?????????"" # #????????????????????? | | ???# #?????????"" #i #????????????????????? | | ???# #??????????" = # #????????????????????? | | ???# #?????????? # #????????????????????? | | ???+ ??????????? # #????????????????????? | | ???? ??????????? # #????????????????????? | | ???? ??????????? ?? #????????????????????? | | ???? ??????????? ???????????????????????????? | | ?????????????????????????????????????????????????? | | ?????????????????????????????????????????????????? | | ?????????????????????????????????????????????????? | | ?????????????????????????????????????????????????? | | ?????????????????????????????????????????????????? | | ?????????????????????????????????????????????????? | | ?????????????????????????????????????????????????? | | ?????????????????????????????????????????????????? | +----------------------------------------------------+ Best States ------------- Heat Dissipation 114 Energy Generation 55 Energy Capacity 1940 Matter Stores 540 Matter Capacity 550 Sight Range 23 Terrain Scan Density 10 Jamming Range 16 Cloak Strength 4 Armor Coverage 1200 Resistance: TH 25 Resistance: EM 15 Point Defense Rating 240 Weapon Cycling 25 Melee Speed Boost 30 Phase Shifting 15 Evasion (%) 81 Targeting Accuracy 8 Launcher Accuracy 40 Core Analysis 8 Armor Integrity Analysis 40 Recoil Reduction 14 Matter Filtering 30 Kinecelleration 50 Force Boost 40 Salvage Targeting 1 Offensive Hacking 22 Defensive Hacking 12 Relay Coupler Types 7 Relay Coupler Value 356 Authchip Count 4 Item Schematics ----------------- Arm. Treads | -8/Materials | Scanalyzed Cmb. Antigrav System | -5/Factory | Scanalyzed Imp. Heavy Treads | -4/Factory | Scanalyzed Robot Schematics ------------------ None Fabricated ------------ O-24 Administrator | x1 | -7/Factory | Preloaded Cmb. Antigrav System | x2 | -2/Research | Authchip Cmb. Antigrav System | x2 | -2/Research | Authchip Cmb. Antigrav System | x2 | -2/Research | Authchip Alien Tech Used ----------------- None Achievements -------------- None Challenges ------------ None Game ------ Seed ImprinterProtonScrap Manual? 0 Play Time 13:48:25 Cumulative 668.0 hours Start 2023.03.11 @ 23:19:22 End 2023.03.15 @ 13:48:13 Sessions 27 Manual Loads 0 Difficulty Rogue Special Mode None Game No. 75 Rogue 60 Adventurer 5 Explorer 10 Win Type - Total 26 Types 6/7/5/0/3/1/3/0/1 Lore% 89 Gallery% 95 Achievement% 85 Wizard Run 0 Options --------- ASCII 0 Keyboard 1 Movement Arrows Keybinds 0 Fullscreen 2 Font 18/SmallcapsGlow Map View 76x50 Tactical HUD 1 Map Filters NONE Filters NONE Steam 1 RUN: cf8d65e7-f419-49b0-a77e-e3fe27f06b55